Workbook

Sheet 1ОиДинфоб (2)
A1: № п/п | B1: Муниципальное образование | C1: Наименование образовательной организации | D1: Показатель 1.1 | J1: Показатель 1.2 | M1: Показатель 1.3 | S1: Итого по критерию:
D2: 1.1.1. Объем информации, размещенной на информационных стендах в помещении организации | F2: 1.1.2. Объем информации, размещенной на официальном сайте организации | H2: Значение показателя 1.1 | I2: Значение показателя 1.1 с учетом значимости | J2: Количество функционирующих дистанционных способов взаимодействия | K2: Значение показателя 1.2 | L2: Значение показателя 1.2 с учетом значимости | M2: Число получателей услуг, удовлетворенных качеством, полнотой и доступностью информации о деятельности организации, размещенной на стендах организации | N2: Число опрошенных получателей услуг, ответивших на соответствующий вопрос анкеты | O2: Число получателей услуг, удовлетворенных качеством, полнотой и доступностью информации о деятельности организации, размещенной на сайте организации | P2: Число опрошенных получателей услуг, ответивших на соответствующий вопрос анкеты | Q2: Значение показателя 1.3 | R2: Значение показателя 1 .3 с учетом веса
H3: 100 | I3: 30 | K3: 100 | L3: 30 | Q3: 100 | R3: 40 | S3: =I3+L3+R3 -> 100
A4: 67 | B4: Романовский район | C4: МБУДО «Романовский детско-юношеский центр» | D4: 9 | E4: 9 | F4: 34 | G4: 34 | H4: =0.5*(D4/E4+F4/G4)*100 -> 100 | I4: =H4*0.3 -> 30 | J4: 3 | K4: =IF(J4<=3,J4*30,100) -> 90 | L4: =K4*0.3 -> 27 | M4: 157 | N4: 157 | O4: 127 | P4: 128 | Q4: 99.9 | R4: =Q4*0.4 -> 39.96 | S4: =I4+L4+R4 -> 96.96

Sheet 1ОиДинфоб
A1: № п/п | B1: Муниципальное образование | C1: Наименование образовательной организации | D1: Показатель 1.1 | H1: Показатель 1.2 | K1: Показатель 1.3 | Q1: Итого по критерию:
D2: 1.1.1. Объем информации, размещенной на информационных стендах в помещении организации | E2: 1.1.2. Объем информации, размещенной на официальном сайте организации | F2: Значение показателя 1.1 | G2: Значение показателя 1.1 с учетом значимости | H2: Количество функционирующих дистанционных способов взаимодействия | I2: Значение показателя 1.2 | J2: Значение показателя 1.2 с учетом значимости | K2: Число получателей услуг, удовлетворенных качеством, полнотой и доступностью информации о деятельности организации, размещенной на стендах организации | L2: Число опрошенных получателей услуг, ответивших на соответствующий вопрос анкеты | M2: Число получателей услуг, удовлетворенных качеством, полнотой и доступностью информации о деятельности организации, размещенной на сайте организации | N2: Число опрошенных получателей услуг, ответивших на соответствующий вопрос анкеты | O2: Значение показателя 1.3 | P2: Значение показателя 1 .3 с учетом веса
F3: 100 | G3: 30 | I3: 100 | J3: 30 | O3: 100 | P3: 40 | Q3: =G3+J3+P3 -> 100
A4: 67 | B4: Романовский район | C4: МБУДО «Романовский детско-юношеский центр» | D4: 9 | E4: 34 | F4: 100 | G4: 30 | H4: 3 | I4: 90 | J4: 27 | K4: 157 | L4: 157 | M4: 127 | N4: 128 | O4: 99.9 | P4: 40 | Q4: 97

Sheet 2КомфУслНал
A1: № п/п | B1: Муниципальное образование | C1: Наименование образовательной организации | D1: Наличие в образовательных организациях комфортных условий для предоставления услуг
D2: Наличие комфортной зоны отдыха (ожидания) оборудованной соответствующей мебелью | E2: Наличие и понятность навигации внутри организации | F2: Наличие и доступность питьевой воды | G2: Наличие и доступность санитарно-гигиенических помещений | H2: Санитарное состояние помещений организации | I2: Транспортная доступность (доступность общественного транспорта и наличие парковки) | J2: Доступность записи на получение услуги (по телефону, с использованием сети «Интернет» на официальном сайте ор | K2: Итого:
A3: 67 | B3: Романовский район | C3: МБУДО «Романовский детско-юношеский центр» | D3: 1 | E3: 1 | F3: 1 | G3: 1 | H3: 1 | I3: 1 | J3: 1 | K3: =SUM(D3:J3) -> 7

Sheet 2КомУслОц
A1: № п/п | B1: Муниципальное образование | C1: Наименование образовательной организации | D1: Обеспечение в организации социальной сферы комфортных условий для предоставления услуг
D2: 2.1.1. Наличие комфортных условий для предоставления услуг | G2: Показатель 2.3 Доля получателей услуг, удовлетворенных комфортностью условий предоставления услуг | K2: Итого по критерию:
D3: Количество комфортных условий для предоставления услуг | E3: Значение показателя 2.1.1 | F3: Значение показателя с учетом значимости | G3: Число получателей услуг, удовлетворенных комфортностью предоставления услуг организацией образования | H3: Число получателей услуг, опрошенных по данному вопросу | I3: Значение показателя 2.3 | J3: Значение показателя 2.3 с учетом значимости
E4: 100 | F4: 50 | I4: 100 | J4: =I4*0.5 -> 50 | K4: =F4+J4 -> 100
A5: 67 | B5: Романовский район | C5: МБУДО «Романовский детско-юношеский центр» | D5: 7 | E5: =IF(D5<=4,D5*20,100) -> 100 | F5: 50 | G5: 161 | H5: 164 | I5: 98 | J5: =I5*0.5 -> 49 | K5: =F5+J5 -> 99

Sheet 3УслДостИнвНал
B1: № п/п | C1: Муниципальное образование | D1: Наименование образовательной организации | E1: Оборудование территории, прилегающей к организации, и ее помещений с учетом доступности для инвалидов: | K1: Обеспечение в организации условий доступности, позволяющих инвалидам получать услуги наравне с другими, включая: | R1: Значение показателя с учетом значимости | T1: Итого:
E2: Оборудование входных групп пандусами/подъемными платформами; | F2: Наличие выделенных стоянок для автотранспортных средств инвалидов; | G2: Наличие адаптированных лифтов, поручней, расширенных дверных проемов; | H2: Наличие сменных кресел-колясок; | I2: Наличие специально оборудованных санитарно-гигиенических помещений в организации | J2: Количество условий | K2: Дублирование для инвалидов по слуху и зрению звуковой и зрительной информации | L2: Дублирование надписей, знаков и иной текстовой и графической информации знаками, выполненными рельефно-точечным шрифтом Брайля | M2: Возможность предоставления инвалидам по слуху (слуху и зрению) услуг сурдопереводчика (тифлосурдопереводчика) | N2: Наличие альтернативной версии официального сайта организации социальной сферы в сети «Интернет» для инвалидов по зрению | O2: Помощь, оказываемая работниками организации, прошедшими необходимое обучение (инструктирование), по сопровождению инвалидов в помещении | P2: Наличие возможности предоставления услуги в дистанционном режиме или на дому | Q2: Количество условий
B3: 67 | C3: Романовский район | D3: МБУДО «Романовский детско-юношеский центр» | E3: 0 | F3: 1 | G3: 0 | H3: 0 | I3: 0 | J3: =SUM(E3:I3) -> 1 | K3: 0 | L3: 0 | M3: 0 | N3: 1 | O3: 1 | P3: 1 | Q3: =SUM(N3:P3) -> 3 | R3: =SUM(K3:P3) -> 3 | S3: 1 | T3: =IF(AND(Q3=3,S3=2),100,IF(AND(Q3=2,S3=2),60,IF(AND(Q3=1,S3=2),30,R3*20))) -> 60

Sheet 3УслДостИнвОц
A1: № п/п | B1: Муниципальное образование | C1: Наименование образовательной организации | D1: Показатель 3.1 | G1: Показатель 3.2 | J1: Показатель 3.3 | N1: Итого по критерию:
D2: Количество условий доступности образовательной организации для инвалидов | E2: Значение показателя 3.1 | F2: Значение показателя 3.1 с учетом значимости | G2: Количество условий доступности, позволяющих инвалидам получать услуги наравне с другими | H2: Значение показателя 3.2 | I2: Значение показателя 3.2 с учетом значимости | J2: Число получателей услуг-инвалидов, удовлетворенных доступностью услуг | K2: Число получателей услуг-инвалидов, опрошенных по данному вопросу | L2: Значение показателя 3.3 | M2: Значение показателя 3.3 с учетом значимости
E3: 100 | F3: =E3*0.3 -> 30 | H3: 100 | I3: =H3*0.4 -> 40 | L3: 100 | M3: =L3*0.3 -> 30 | N3: =F3+I3+M3 -> 100
A4: 67 | B4: Романовский район | C4: МБУДО «Романовский детско-юношеский центр» | D4: 1 | E4: =IF(D4<=4,D4*20,100) -> 20 | F4: =E4*0.3 -> 6 | G4: 3 | H4: 60 | I4: =H4*0.4 -> 24 | J4: 8 | K4: 8 | L4: =J4/K4*100 -> 100 | M4: =L4*0.3 -> 30 | N4: =F4+I4+M4 -> 60
O144: 1
O145: 2
O146: 3
O147: 4
O148: 5
O149: 6
O150: 7
O151: 8
O152: 9
O153: 10
O154: 11
O155: 12
O156: 13
O157: 14
O158: 15
O159: 16
O160: 17
O161: 18
O162: 19
O163: 20
O164: 21
O165: 22
O166: 23
O167: 24
O168: 25
O169: 26
O170: 27
O171: 28
O172: 29
O173: 30
O174: 31
O175: 32

Sheet 4ДобрВежл
A1: № п/п | B1: № п/п | C1: Муниципальное образование | D1: Наименование образовательной организации | E1: Показатель 4.1 Доля получателей услуг, удовлетворенных доброжелательностью, вежливостью работников организации социальной сферы | I1: Показатель 4.2 Доля получателей услуг, удовлетворенных доброжелательностью, вежливостью работников организации социальной сферы, обеспечивающих непосредственное оказание услуги | M1: Показатель 4.3 Доля получателей услуг, удовлетворенных доброжелательностью, вежливостью работников организации социальной сферы при использовании дистанционных форм взаимодействия | Q1: Итого по критерию:
E2: Число получателей услуг, удовлетворенных доброжелательностью, вежливостью работников организации социальной сферы, обеспечивающих первичный контакт и информирование получателя услуги | F2: Число опрошенных получателей услуг, ответивших на соответствующий вопрос анкеты | G2: Значение показателя 4.1 | H2: Значение показателя 4.1 с учетом значимости | I2: Число получателей услуг, удовлетворенных доброжелательностью, вежливостью работников организации социальной сферы, обеспечивающих непосредственное оказание услуги | J2: Число опрошенных получателей услуг, ответивших на соответствующий вопрос анкеты | K2: Значение показателя 4.2 | L2: Значение показателя 4.2 с учетом значимости | M2: Число получателей услуг, удовлетворенных доброжелательностью, вежливостью работников организации социальной сферы при использовании дистанционных форм взаимодействия | N2: Число опрошенных получателей услуг, ответивших на соответствующий вопрос анкеты | O2: Значение показателя 4.3 | P2: Значение показателя 4.3 с учетом значимости
G3: 100 | H3: =G3*0.4 -> 40 | K3: 100 | L3: =K3*0.4 -> 40 | O3: 100 | P3: =O3*0.2 -> 20 | Q3: =H3+L3+P3 -> 100
B4: 67 | C4: Романовский район | D4: МБУДО «Романовский детско-юношеский центр» | E4: 164 | F4: 164 | G4: =E4/F4*100 -> 100 | H4: =G4*0.4 -> 40 | I4: 164 | J4: 164 | K4: =I4/J4*100 -> 100 | L4: =K4*0.4 -> 40 | M4: 160 | N4: 164 | O4: 97.8 | P4: =O4*0.2 -> 19.56 | Q4: =H4+L4+P4 -> 99.56

Sheet 5УдовлУсл
B1: № п/п | C1: Муниципальное образование | D1: Наименование образовательной организации | E1: Показатель 5.1 Доля получателей услуг, которые готовы рекомендовать организацию социальной сферы родственникам и знакомым | I1: Показатель 5.2 Доля получателей услуг, удовлетворенных организационными условиями предоставления услуг | M1: Показатель 5.3 Доля получателей услуг, удовлетворенных в целом условиями оказания услуг в организации | Q1: Итого по критерию:
E2: Число получателей услуг, которые готовы рекомендовать организацию родственникам и знакомым | F2: Число опрошенных получателей услуг, ответивших на соответствующий вопрос анкеты | G2: Значение показателя 5.1 | H2: Значение показателя 5.1 с учетом значимости | I2: Число получателей услуг, удовлетворенных организационными условиями предоставления услуг | J2: Число опрошенных получателей услуг, ответивших на соответствующий вопрос анкеты | K2: Значение показателя 5.2 | L2: Значение показателя 5.2 с учетом значимости | M2: Число получателей услуг, удовлетворенных в целом условиями оказания услуг в организации социальной сферы | N2: Число опрошенных получателей услуг, ответивших на соответствующий вопрос анкеты | O2: Значение показателя 5.3 | P2: Значение показателя 5.3 с учетом значимости
G3: 100 | H3: =G3*0.3 -> 30 | K3: 100 | L3: =K3*0.2 -> 20 | O3: 100 | P3: =O3*0.5 -> 50 | Q3: =H3+L3+P3 -> 100
B4: 67 | C4: Романовский район | D4: МБУДО «Романовский детско-юношеский центр» | E4: 164 | F4: 164 | G4: =E4/F4*100 -> 100 | H4: =G4*0.3 -> 30 | I4: 164 | J4: 164 | K4: =I4/J4*100 -> 100 | L4: =K4*0.2 -> 20 | M4: 163 | N4: 164 | O4: 99.9 | P4: =O4*0.5 -> 49.95 | Q4: =H4+L4+P4 -> 99.95

Sheet Интегр
A1: Место в рейтинге | B1: Муниципальное образование | C1: Наименование образовательной организации | D1: Интегральное значение показателя | E1: 1 - Показатели, характеризующие откртость и доступность информации об организации | I1: 2 - Показатели, характеризующие комфортность условий предоставления услуг | L1: 3 - Показатели, характеризующие доступность услуг для инвалидов | P1: 4 - Показатели, характеризующие доброжелательность, вежливость работников организации | T1: 5 - Показатели, характеризующие удовлетворенность условиями оказания услуг
E2: 1.1 | F2: 1.2 | G2: 1.3 | H2: К1 | I2: 2.1 | J2: 2.3 | K2: К2 | L2: 3.1 | M2: 3.2 | N2: 3.3 | O2: К3 | P2: 4.1 | Q2: 4.2 | R2: 4.3 | S2: К4 | T2: 5.1 | U2: 5.2 | V2: 5.3 | W2: К5
E3: 30 | F3: 30 | G3: 40 | H3: 100 | I3: 50 | J3: 50 | K3: 100 | L3: 30 | M3: 40 | N3: 30 | O3: 100 | P3: 40 | Q3: 40 | R3: 20 | S3: 100 | T3: 30 | U3: 20 | V3: 50 | W3: 100
A4: 1 | B4: г. Барнаул | C4: КГБУДО «Детский технопарк Алтайского края «Кванториум.22» | D4: =AVERAGE(H4,K4,O4,S4,W4) ->  | E4: ='1ОиДинфоб'!#REF! ->  | F4: ='1ОиДинфоб'!#REF! ->  | G4: ='1ОиДинфоб'!#REF! ->  | H4: =E4+F4+G4 ->  | I4: ='2КомУслОц'!#REF! ->  | J4: ='2КомУслОц'!#REF! ->  | K4: =I4+J4 ->  | L4: ='3УслДостИнвОц'!#REF! ->  | M4: ='3УслДостИнвОц'!#REF! ->  | N4: ='3УслДостИнвОц'!#REF! ->  | O4: =L4+M4+N4 ->  | P4: ='4ДобрВежл'!#REF! ->  | Q4: ='4ДобрВежл'!#REF! ->  | R4: ='4ДобрВежл'!#REF! ->  | S4: =SUM(P4:R4) ->  | T4: ='5УдовлУсл'!#REF! ->  | U4: ='5УдовлУсл'!#REF! ->  | V4: ='5УдовлУсл'!#REF! ->  | W4: =SUM(T4:V4) -> 
A5: 2 | B5: г. Барнаул | C5: МБУДО Детский оздоровительно-образовательный (профильный) центр «Валеологический центр» | E5: ='1ОиДинфоб'!#REF! ->  | F5: ='1ОиДинфоб'!#REF! ->  | G5: ='1ОиДинфоб'!#REF! ->  | I5: ='2КомУслОц'!#REF! ->  | J5: ='2КомУслОц'!#REF! ->  | L5: ='3УслДостИнвОц'!#REF! ->  | M5: ='3УслДостИнвОц'!#REF! ->  | N5: ='3УслДостИнвОц'!#REF! ->  | P5: ='4ДобрВежл'!#REF! ->  | Q5: ='4ДобрВежл'!#REF! ->  | R5: ='4ДобрВежл'!#REF! ->  | T5: ='5УдовлУсл'!#REF! ->  | U5: ='5УдовлУсл'!#REF! ->  | V5: ='5УдовлУсл'!#REF! -> 
A6: 3 | B6: г. Барнаул | C6: КГБУДО «Алтайский краевой детский экологический центр» | E6: ='1ОиДинфоб'!#REF! ->  | F6: ='1ОиДинфоб'!#REF! ->  | G6: ='1ОиДинфоб'!#REF! ->  | I6: ='2КомУслОц'!#REF! ->  | J6: ='2КомУслОц'!#REF! ->  | L6: ='3УслДостИнвОц'!#REF! ->  | M6: ='3УслДостИнвОц'!#REF! ->  | N6: ='3УслДостИнвОц'!#REF! ->  | P6: ='4ДобрВежл'!#REF! ->  | Q6: ='4ДобрВежл'!#REF! ->  | R6: ='4ДобрВежл'!#REF! ->  | T6: ='5УдовлУсл'!#REF! ->  | U6: ='5УдовлУсл'!#REF! ->  | V6: ='5УдовлУсл'!#REF! -> 
B7: Советский район | C7: МБУДО «Детско-юношеский центр» Советского района | D7: =AVERAGE(H7,K7,O7,S7,W7) ->  | E7: ='1ОиДинфоб'!#REF! ->  | F7: ='1ОиДинфоб'!#REF! ->  | G7: ='1ОиДинфоб'!#REF! ->  | H7: =E7+F7+G7 ->  | I7: ='2КомУслОц'!#REF! ->  | J7: ='2КомУслОц'!#REF! ->  | K7: =I7+J7 ->  | L7: ='3УслДостИнвОц'!#REF! ->  | M7: ='3УслДостИнвОц'!#REF! ->  | N7: ='3УслДостИнвОц'!#REF! ->  | O7: =L7+M7+N7 ->  | P7: ='4ДобрВежл'!#REF! ->  | Q7: ='4ДобрВежл'!#REF! ->  | R7: ='4ДобрВежл'!#REF! ->  | S7: =SUM(P7:R7) ->  | T7: ='5УдовлУсл'!#REF! ->  | U7: ='5УдовлУсл'!#REF! ->  | V7: ='5УдовлУсл'!#REF! ->  | W7: =SUM(T7:V7) -> 
A8: 4 | B8: Баевский район | C8: МБУДО «Баевский Центр детского творчества и профессионального обучения Алтайского края» | D8: =AVERAGE(H8,K8,O8,S8,W8) ->  | E8: ='1ОиДинфоб'!#REF! ->  | F8: ='1ОиДинфоб'!#REF! ->  | G8: ='1ОиДинфоб'!#REF! ->  | H8: =E8+F8+G8 ->  | I8: ='2КомУслОц'!#REF! ->  | J8: ='2КомУслОц'!#REF! ->  | K8: =I8+J8 ->  | L8: ='3УслДостИнвОц'!#REF! ->  | M8: ='3УслДостИнвОц'!#REF! ->  | N8: ='3УслДостИнвОц'!#REF! ->  | O8: =L8+M8+N8 ->  | P8: ='4ДобрВежл'!#REF! ->  | Q8: ='4ДобрВежл'!#REF! ->  | R8: ='4ДобрВежл'!#REF! ->  | S8: =SUM(P8:R8) ->  | T8: ='5УдовлУсл'!#REF! ->  | U8: ='5УдовлУсл'!#REF! ->  | V8: ='5УдовлУсл'!#REF! ->  | W8: =SUM(T8:V8) -> 
B9: Шелаболихинский район | C9: МКУДО «Шелаболихинская детско-юношеская спортивная школа» | E9: ='1ОиДинфоб'!#REF! ->  | F9: ='1ОиДинфоб'!#REF! ->  | G9: ='1ОиДинфоб'!#REF! ->  | H9: 96.3 | I9: ='2КомУслОц'!#REF! ->  | J9: ='2КомУслОц'!#REF! ->  | L9: ='3УслДостИнвОц'!#REF! ->  | M9: ='3УслДостИнвОц'!#REF! ->  | N9: ='3УслДостИнвОц'!#REF! ->  | P9: ='4ДобрВежл'!#REF! ->  | Q9: ='4ДобрВежл'!#REF! ->  | R9: ='4ДобрВежл'!#REF! ->  | T9: ='5УдовлУсл'!#REF! ->  | U9: ='5УдовлУсл'!#REF! ->  | V9: ='5УдовлУсл'!#REF! -> 
A10: 5 | B10: г. Барнаул | C10: КГБУДО «Алтайский краевой центр детского отдыха, туризма и краеведения «Алтай» | D10: =AVERAGE(H10,K10,O10,S10,W10) ->  | E10: ='1ОиДинфоб'!#REF! ->  | F10: ='1ОиДинфоб'!#REF! ->  | G10: ='1ОиДинфоб'!#REF! ->  | H10: =E10+F10+G10 ->  | I10: ='2КомУслОц'!#REF! ->  | J10: ='2КомУслОц'!#REF! ->  | K10: =I10+J10 ->  | L10: ='3УслДостИнвОц'!#REF! ->  | M10: ='3УслДостИнвОц'!#REF! ->  | N10: ='3УслДостИнвОц'!#REF! ->  | O10: =L10+M10+N10 ->  | P10: ='4ДобрВежл'!#REF! ->  | Q10: ='4ДобрВежл'!#REF! ->  | R10: ='4ДобрВежл'!#REF! ->  | S10: =SUM(P10:R10) ->  | T10: ='5УдовлУсл'!#REF! ->  | U10: ='5УдовлУсл'!#REF! ->  | V10: ='5УдовлУсл'!#REF! ->  | W10: =SUM(T10:V10) -> 
B11: г. Рубцовск | C11: МБУДО «Станция туризма и экскурсий» г. Рубцовска | E11: ='1ОиДинфоб'!#REF! ->  | F11: ='1ОиДинфоб'!#REF! ->  | G11: ='1ОиДинфоб'!#REF! ->  | I11: ='2КомУслОц'!#REF! ->  | J11: ='2КомУслОц'!#REF! ->  | L11: ='3УслДостИнвОц'!#REF! ->  | M11: ='3УслДостИнвОц'!#REF! ->  | N11: ='3УслДостИнвОц'!#REF! ->  | P11: ='4ДобрВежл'!#REF! ->  | Q11: ='4ДобрВежл'!#REF! ->  | R11: ='4ДобрВежл'!#REF! ->  | T11: ='5УдовлУсл'!#REF! ->  | U11: ='5УдовлУсл'!#REF! ->  | V11: ='5УдовлУсл'!#REF! -> 
A12: 6 | B12: Кулундинский район | C12: МБУДО «Центр детского творчества» Кулундинского района | E12: ='1ОиДинфоб'!#REF! ->  | F12: ='1ОиДинфоб'!#REF! ->  | G12: ='1ОиДинфоб'!#REF! ->  | I12: ='2КомУслОц'!#REF! ->  | J12: ='2КомУслОц'!#REF! ->  | L12: ='3УслДостИнвОц'!#REF! ->  | M12: ='3УслДостИнвОц'!#REF! ->  | N12: ='3УслДостИнвОц'!#REF! ->  | P12: ='4ДобрВежл'!#REF! ->  | Q12: ='4ДобрВежл'!#REF! ->  | R12: ='4ДобрВежл'!#REF! ->  | T12: ='5УдовлУсл'!#REF! ->  | U12: ='5УдовлУсл'!#REF! ->  | V12: ='5УдовлУсл'!#REF! -> 
A13: 7 | B13: Алтайский район | C13: МАОУДО «Алтайский районный детско-юношеский центр» | E13: ='1ОиДинфоб'!#REF! ->  | F13: ='1ОиДинфоб'!#REF! ->  | G13: ='1ОиДинфоб'!#REF! ->  | I13: ='2КомУслОц'!#REF! ->  | J13: ='2КомУслОц'!#REF! ->  | L13: ='3УслДостИнвОц'!#REF! ->  | M13: ='3УслДостИнвОц'!#REF! ->  | N13: ='3УслДостИнвОц'!#REF! ->  | P13: ='4ДобрВежл'!#REF! ->  | Q13: ='4ДобрВежл'!#REF! ->  | R13: ='4ДобрВежл'!#REF! ->  | T13: ='5УдовлУсл'!#REF! ->  | U13: ='5УдовлУсл'!#REF! ->  | V13: ='5УдовлУсл'!#REF! -> 
A14: 8 | B14: Завьяловский район | C14: МБОУДО «Завьяловский районный центр детского творчества» | E14: ='1ОиДинфоб'!#REF! ->  | F14: ='1ОиДинфоб'!#REF! ->  | G14: ='1ОиДинфоб'!#REF! ->  | I14: ='2КомУслОц'!#REF! ->  | J14: ='2КомУслОц'!#REF! ->  | L14: ='3УслДостИнвОц'!#REF! ->  | M14: ='3УслДостИнвОц'!#REF! ->  | N14: ='3УслДостИнвОц'!#REF! ->  | P14: ='4ДобрВежл'!#REF! ->  | Q14: ='4ДобрВежл'!#REF! ->  | R14: ='4ДобрВежл'!#REF! ->  | T14: ='5УдовлУсл'!#REF! ->  | U14: ='5УдовлУсл'!#REF! ->  | V14: ='5УдовлУсл'!#REF! -> 
B15: Заринский район | C15: МБУДО «Центр детского творчества» Заринского района | E15: ='1ОиДинфоб'!#REF! ->  | F15: ='1ОиДинфоб'!#REF! ->  | G15: ='1ОиДинфоб'!#REF! ->  | I15: ='2КомУслОц'!#REF! ->  | J15: ='2КомУслОц'!#REF! ->  | L15: ='3УслДостИнвОц'!#REF! ->  | M15: ='3УслДостИнвОц'!#REF! ->  | N15: ='3УслДостИнвОц'!#REF! ->  | O15: =L15+M15+N15 ->  | P15: ='4ДобрВежл'!#REF! ->  | Q15: ='4ДобрВежл'!#REF! ->  | R15: ='4ДобрВежл'!#REF! ->  | T15: ='5УдовлУсл'!#REF! ->  | U15: ='5УдовлУсл'!#REF! ->  | V15: ='5УдовлУсл'!#REF! -> 
A16: 9 | B16: г. Заринск | C16: МБУДО «Центр детского творчества» г. Заринска | D16: =AVERAGE(H16,K16,O16,S16,W16) ->  | E16: ='1ОиДинфоб'!#REF! ->  | F16: ='1ОиДинфоб'!#REF! ->  | G16: ='1ОиДинфоб'!#REF! ->  | H16: =E16+F16+G16 ->  | I16: ='2КомУслОц'!#REF! ->  | J16: ='2КомУслОц'!#REF! ->  | K16: =I16+J16 ->  | L16: ='3УслДостИнвОц'!#REF! ->  | M16: ='3УслДостИнвОц'!#REF! ->  | N16: ='3УслДостИнвОц'!#REF! ->  | P16: ='4ДобрВежл'!#REF! ->  | Q16: ='4ДобрВежл'!#REF! ->  | R16: ='4ДобрВежл'!#REF! ->  | S16: =SUM(P16:R16) ->  | T16: ='5УдовлУсл'!#REF! ->  | U16: ='5УдовлУсл'!#REF! ->  | V16: ='5УдовлУсл'!#REF! ->  | W16: =SUM(T16:V16) -> 
A17: 10 | B17: Змеиногорский район | C17: МБУДО «Дворец творчества детей и молодежи» Змеиногорского район | E17: ='1ОиДинфоб'!#REF! ->  | F17: ='1ОиДинфоб'!#REF! ->  | G17: ='1ОиДинфоб'!#REF! ->  | I17: ='2КомУслОц'!#REF! ->  | J17: ='2КомУслОц'!#REF! ->  | L17: ='3УслДостИнвОц'!#REF! ->  | M17: ='3УслДостИнвОц'!#REF! ->  | N17: ='3УслДостИнвОц'!#REF! ->  | P17: ='4ДобрВежл'!#REF! ->  | Q17: ='4ДобрВежл'!#REF! ->  | R17: ='4ДобрВежл'!#REF! ->  | T17: ='5УдовлУсл'!#REF! ->  | U17: ='5УдовлУсл'!#REF! ->  | V17: ='5УдовлУсл'!#REF! -> 
A18: 11 | B18: г. Белокуриха | C18: МБУДО «Центр эстетического воспитания» г. Белокурихи | E18: ='1ОиДинфоб'!#REF! ->  | F18: ='1ОиДинфоб'!#REF! ->  | G18: ='1ОиДинфоб'!#REF! ->  | I18: ='2КомУслОц'!#REF! ->  | J18: ='2КомУслОц'!#REF! ->  | L18: ='3УслДостИнвОц'!#REF! ->  | M18: ='3УслДостИнвОц'!#REF! ->  | N18: ='3УслДостИнвОц'!#REF! ->  | P18: ='4ДобрВежл'!#REF! ->  | Q18: ='4ДобрВежл'!#REF! ->  | R18: ='4ДобрВежл'!#REF! ->  | T18: ='5УдовлУсл'!#REF! ->  | U18: ='5УдовлУсл'!#REF! ->  | V18: ='5УдовлУсл'!#REF! -> 
A19: 12 | B19: Кытмановский район | C19: МБУДО «Центр спорта и творчества Кытмановского района» | E19: ='1ОиДинфоб'!#REF! ->  | F19: ='1ОиДинфоб'!#REF! ->  | G19: ='1ОиДинфоб'!#REF! ->  | I19: ='2КомУслОц'!#REF! ->  | J19: ='2КомУслОц'!#REF! ->  | L19: ='3УслДостИнвОц'!#REF! ->  | M19: ='3УслДостИнвОц'!#REF! ->  | N19: ='3УслДостИнвОц'!#REF! ->  | P19: ='4ДобрВежл'!#REF! ->  | Q19: ='4ДобрВежл'!#REF! ->  | R19: ='4ДобрВежл'!#REF! ->  | T19: ='5УдовлУсл'!#REF! ->  | U19: ='5УдовлУсл'!#REF! ->  | V19: ='5УдовлУсл'!#REF! -> 
A20: 13 | B20: Топчихинский район | C20: МКУДО «Топчихинский детско-юношеский центр» | E20: ='1ОиДинфоб'!#REF! ->  | F20: ='1ОиДинфоб'!#REF! ->  | G20: ='1ОиДинфоб'!#REF! ->  | I20: ='2КомУслОц'!#REF! ->  | J20: ='2КомУслОц'!#REF! ->  | L20: ='3УслДостИнвОц'!#REF! ->  | M20: ='3УслДостИнвОц'!#REF! ->  | N20: ='3УслДостИнвОц'!#REF! ->  | P20: ='4ДобрВежл'!#REF! ->  | Q20: ='4ДобрВежл'!#REF! ->  | R20: ='4ДобрВежл'!#REF! ->  | T20: ='5УдовлУсл'!#REF! ->  | U20: ='5УдовлУсл'!#REF! ->  | V20: ='5УдовлУсл'!#REF! -> 
A21: 14 | B21: г. Барнаул | C21: МБУДО «Детская школа искусств «Традиция» с. Власиха г. Барнаула | E21: ='1ОиДинфоб'!#REF! ->  | F21: ='1ОиДинфоб'!#REF! ->  | G21: ='1ОиДинфоб'!#REF! ->  | I21: ='2КомУслОц'!#REF! ->  | J21: ='2КомУслОц'!#REF! ->  | L21: ='3УслДостИнвОц'!#REF! ->  | M21: ='3УслДостИнвОц'!#REF! ->  | N21: ='3УслДостИнвОц'!#REF! ->  | P21: ='4ДобрВежл'!#REF! ->  | Q21: ='4ДобрВежл'!#REF! ->  | R21: ='4ДобрВежл'!#REF! ->  | T21: ='5УдовлУсл'!#REF! ->  | U21: ='5УдовлУсл'!#REF! ->  | V21: ='5УдовлУсл'!#REF! -> 
A22: 15 | B22: Чарышский район | C22: МБУДО «Центр детского творчества»Чарышского района | E22: ='1ОиДинфоб'!#REF! ->  | F22: ='1ОиДинфоб'!#REF! ->  | G22: ='1ОиДинфоб'!#REF! ->  | I22: ='2КомУслОц'!#REF! ->  | J22: ='2КомУслОц'!#REF! ->  | L22: ='3УслДостИнвОц'!#REF! ->  | M22: ='3УслДостИнвОц'!#REF! ->  | N22: ='3УслДостИнвОц'!#REF! ->  | P22: ='4ДобрВежл'!#REF! ->  | Q22: ='4ДобрВежл'!#REF! ->  | R22: ='4ДобрВежл'!#REF! ->  | T22: ='5УдовлУсл'!#REF! ->  | U22: ='5УдовлУсл'!#REF! ->  | V22: ='5УдовлУсл'!#REF! -> 
A23: 16 | B23: Крутихинский район | C23: МБУДО «Крутихинский Детско-юношеский центр» | E23: ='1ОиДинфоб'!#REF! ->  | F23: ='1ОиДинфоб'!#REF! ->  | G23: ='1ОиДинфоб'!#REF! ->  | I23: ='2КомУслОц'!#REF! ->  | J23: ='2КомУслОц'!#REF! ->  | L23: ='3УслДостИнвОц'!#REF! ->  | M23: ='3УслДостИнвОц'!#REF! ->  | N23: ='3УслДостИнвОц'!#REF! ->  | P23: ='4ДобрВежл'!#REF! ->  | Q23: ='4ДобрВежл'!#REF! ->  | R23: ='4ДобрВежл'!#REF! ->  | T23: ='5УдовлУсл'!#REF! ->  | U23: ='5УдовлУсл'!#REF! ->  | V23: ='5УдовлУсл'!#REF! -> 
A24: 17 | B24: г. Яровое | C24: МБУДО «Центр научно-технического творчества учащихся» г. Яровое | D24: =AVERAGE(H24,K24,O24,S24,W24) ->  | E24: ='1ОиДинфоб'!#REF! ->  | F24: ='1ОиДинфоб'!#REF! ->  | G24: ='1ОиДинфоб'!#REF! ->  | H24: =E24+F24+G24 ->  | I24: ='2КомУслОц'!#REF! ->  | J24: ='2КомУслОц'!#REF! ->  | K24: =I24+J24 ->  | L24: ='3УслДостИнвОц'!#REF! ->  | M24: ='3УслДостИнвОц'!#REF! ->  | N24: ='3УслДостИнвОц'!#REF! ->  | O24: =L24+M24+N24 ->  | P24: ='4ДобрВежл'!#REF! ->  | Q24: ='4ДобрВежл'!#REF! ->  | R24: ='4ДобрВежл'!#REF! ->  | S24: =SUM(P24:R24) ->  | T24: ='5УдовлУсл'!#REF! ->  | U24: ='5УдовлУсл'!#REF! ->  | V24: ='5УдовлУсл'!#REF! ->  | W24: =SUM(T24:V24) -> 
A25: 18 | B25: Локтевский район | C25: МБУДО «Дом детского творчества» Локтевского района | D25: =AVERAGE(H25,K25,O25,S25,W25) ->  | E25: ='1ОиДинфоб'!#REF! ->  | F25: ='1ОиДинфоб'!#REF! ->  | G25: ='1ОиДинфоб'!#REF! ->  | H25: =E25+F25+G25 ->  | I25: ='2КомУслОц'!#REF! ->  | J25: ='2КомУслОц'!#REF! ->  | K25: =I25+J25 ->  | L25: ='3УслДостИнвОц'!#REF! ->  | M25: ='3УслДостИнвОц'!#REF! ->  | N25: ='3УслДостИнвОц'!#REF! ->  | O25: =L25+M25+N25 ->  | P25: ='4ДобрВежл'!#REF! ->  | Q25: ='4ДобрВежл'!#REF! ->  | R25: ='4ДобрВежл'!#REF! ->  | S25: =SUM(P25:R25) ->  | T25: ='5УдовлУсл'!#REF! ->  | U25: ='5УдовлУсл'!#REF! ->  | V25: ='5УдовлУсл'!#REF! ->  | W25: =SUM(T25:V25) -> 
A26: 19 | B26: г. Барнаул | C26: МБУДО «Центр детского творчества №2» г. Барнаула | D26: =AVERAGE(H26,K26,O26,S26,W26) ->  | E26: ='1ОиДинфоб'!#REF! ->  | F26: ='1ОиДинфоб'!#REF! ->  | G26: ='1ОиДинфоб'!#REF! ->  | H26: =E26+F26+G26 ->  | I26: ='2КомУслОц'!#REF! ->  | J26: ='2КомУслОц'!#REF! ->  | K26: =I26+J26 ->  | L26: ='3УслДостИнвОц'!#REF! ->  | M26: ='3УслДостИнвОц'!#REF! ->  | N26: ='3УслДостИнвОц'!#REF! ->  | O26: =L26+M26+N26 ->  | P26: ='4ДобрВежл'!#REF! ->  | Q26: ='4ДобрВежл'!#REF! ->  | R26: ='4ДобрВежл'!#REF! ->  | S26: =SUM(P26:R26) ->  | T26: ='5УдовлУсл'!#REF! ->  | U26: ='5УдовлУсл'!#REF! ->  | V26: ='5УдовлУсл'!#REF! ->  | W26: =SUM(T26:V26) -> 
A27: 20 | B27: Ельцовский район | C27: МБУДО «Ельцовский центр развития детей-детско-юношеская спортивная школа" | D27: =AVERAGE(H27,K27,O27,S27,W27) ->  | E27: ='1ОиДинфоб'!#REF! ->  | F27: ='1ОиДинфоб'!#REF! ->  | G27: ='1ОиДинфоб'!#REF! ->  | H27: =E27+F27+G27 ->  | I27: ='2КомУслОц'!#REF! ->  | J27: ='2КомУслОц'!#REF! ->  | K27: =I27+J27 ->  | L27: ='3УслДостИнвОц'!#REF! ->  | M27: ='3УслДостИнвОц'!#REF! ->  | N27: ='3УслДостИнвОц'!#REF! ->  | O27: =L27+M27+N27 ->  | P27: ='4ДобрВежл'!#REF! ->  | Q27: ='4ДобрВежл'!#REF! ->  | R27: ='4ДобрВежл'!#REF! ->  | S27: =SUM(P27:R27) ->  | T27: ='5УдовлУсл'!#REF! ->  | U27: ='5УдовлУсл'!#REF! ->  | V27: ='5УдовлУсл'!#REF! ->  | W27: =SUM(T27:V27) -> 
B28: Тальменский район | C28: МКУДО «Тальменская детско-юношеская спортивная школа» | E28: ='1ОиДинфоб'!#REF! ->  | F28: ='1ОиДинфоб'!#REF! ->  | G28: ='1ОиДинфоб'!#REF! ->  | I28: ='2КомУслОц'!#REF! ->  | J28: ='2КомУслОц'!#REF! ->  | L28: ='3УслДостИнвОц'!#REF! ->  | M28: ='3УслДостИнвОц'!#REF! ->  | N28: ='3УслДостИнвОц'!#REF! ->  | P28: ='4ДобрВежл'!#REF! ->  | Q28: ='4ДобрВежл'!#REF! ->  | R28: ='4ДобрВежл'!#REF! ->  | T28: ='5УдовлУсл'!#REF! ->  | U28: ='5УдовлУсл'!#REF! ->  | V28: ='5УдовлУсл'!#REF! -> 
A29: 21 | B29: Благовещенский район | C29: МБУДО «Благовещенский детско-юношеский центр» | D29: =AVERAGE(H29,K29,O29,S29,W29) ->  | E29: ='1ОиДинфоб'!#REF! ->  | F29: ='1ОиДинфоб'!#REF! ->  | G29: ='1ОиДинфоб'!#REF! ->  | H29: =E29+F29+G29 ->  | I29: ='2КомУслОц'!#REF! ->  | J29: ='2КомУслОц'!#REF! ->  | K29: =I29+J29 ->  | L29: ='3УслДостИнвОц'!#REF! ->  | M29: ='3УслДостИнвОц'!#REF! ->  | N29: ='3УслДостИнвОц'!#REF! ->  | O29: =L29+M29+N29 ->  | P29: ='4ДобрВежл'!#REF! ->  | Q29: ='4ДобрВежл'!#REF! ->  | R29: ='4ДобрВежл'!#REF! ->  | S29: =SUM(P29:R29) ->  | T29: ='5УдовлУсл'!#REF! ->  | U29: ='5УдовлУсл'!#REF! ->  | V29: ='5УдовлУсл'!#REF! ->  | W29: =SUM(T29:V29) -> 
A30: 22 | B30: г. Барнаул | C30: МБУДО Городской психолого-педагогический центр «Потенциал» | E30: ='1ОиДинфоб'!#REF! ->  | F30: ='1ОиДинфоб'!#REF! ->  | G30: ='1ОиДинфоб'!#REF! ->  | I30: ='2КомУслОц'!#REF! ->  | J30: ='2КомУслОц'!#REF! ->  | L30: ='3УслДостИнвОц'!#REF! ->  | M30: ='3УслДостИнвОц'!#REF! ->  | N30: ='3УслДостИнвОц'!#REF! ->  | P30: ='4ДобрВежл'!#REF! ->  | Q30: ='4ДобрВежл'!#REF! ->  | R30: ='4ДобрВежл'!#REF! ->  | T30: ='5УдовлУсл'!#REF! ->  | U30: ='5УдовлУсл'!#REF! ->  | V30: ='5УдовлУсл'!#REF! -> 
A31: 23 | B31: Новоалтайск район | C31: МБОУДО «Детско-юношеский центр города Новоалтайска» | E31: ='1ОиДинфоб'!#REF! ->  | F31: ='1ОиДинфоб'!#REF! ->  | G31: ='1ОиДинфоб'!#REF! ->  | I31: ='2КомУслОц'!#REF! ->  | J31: ='2КомУслОц'!#REF! ->  | L31: ='3УслДостИнвОц'!#REF! ->  | M31: ='3УслДостИнвОц'!#REF! ->  | N31: ='3УслДостИнвОц'!#REF! ->  | P31: ='4ДобрВежл'!#REF! ->  | Q31: ='4ДобрВежл'!#REF! ->  | R31: ='4ДобрВежл'!#REF! ->  | T31: ='5УдовлУсл'!#REF! ->  | U31: ='5УдовлУсл'!#REF! ->  | V31: ='5УдовлУсл'!#REF! -> 
A32: 24 | B32: Табунский район | C32: МБУДО «Центр дополнительного образования детей» Табунского района | E32: ='1ОиДинфоб'!#REF! ->  | F32: ='1ОиДинфоб'!#REF! ->  | G32: ='1ОиДинфоб'!#REF! ->  | I32: ='2КомУслОц'!#REF! ->  | J32: ='2КомУслОц'!#REF! ->  | L32: ='3УслДостИнвОц'!#REF! ->  | M32: ='3УслДостИнвОц'!#REF! ->  | N32: ='3УслДостИнвОц'!#REF! ->  | P32: ='4ДобрВежл'!#REF! ->  | Q32: ='4ДобрВежл'!#REF! ->  | R32: ='4ДобрВежл'!#REF! ->  | T32: ='5УдовлУсл'!#REF! ->  | U32: ='5УдовлУсл'!#REF! ->  | V32: ='5УдовлУсл'!#REF! -> 
A33: 25 | B33: г. Барнаул | C33: МБУДО «Центр развития творчества детей и юношества» Ленинского района г. Барнаула | E33: ='1ОиДинфоб'!#REF! ->  | F33: ='1ОиДинфоб'!#REF! ->  | G33: ='1ОиДинфоб'!#REF! ->  | I33: ='2КомУслОц'!#REF! ->  | J33: ='2КомУслОц'!#REF! ->  | L33: ='3УслДостИнвОц'!#REF! ->  | M33: ='3УслДостИнвОц'!#REF! ->  | N33: ='3УслДостИнвОц'!#REF! ->  | P33: ='4ДобрВежл'!#REF! ->  | Q33: ='4ДобрВежл'!#REF! ->  | R33: ='4ДобрВежл'!#REF! ->  | T33: ='5УдовлУсл'!#REF! ->  | U33: ='5УдовлУсл'!#REF! ->  | V33: ='5УдовлУсл'!#REF! -> 
A34: 26 | B34: Чарышский район | C34: МБУДО «Детско-юношеская спортивная школа» Чарышского района | E34: ='1ОиДинфоб'!#REF! ->  | F34: ='1ОиДинфоб'!#REF! ->  | G34: ='1ОиДинфоб'!#REF! ->  | I34: ='2КомУслОц'!#REF! ->  | J34: ='2КомУслОц'!#REF! ->  | L34: ='3УслДостИнвОц'!#REF! ->  | M34: ='3УслДостИнвОц'!#REF! ->  | N34: ='3УслДостИнвОц'!#REF! ->  | P34: ='4ДобрВежл'!#REF! ->  | Q34: ='4ДобрВежл'!#REF! ->  | R34: ='4ДобрВежл'!#REF! ->  | T34: ='5УдовлУсл'!#REF! ->  | U34: ='5УдовлУсл'!#REF! ->  | V34: ='5УдовлУсл'!#REF! -> 
A35: 27 | B35: Мамонтовский район | C35: МБУДО «Мамонтовский детско-юношеский центр» | E35: ='1ОиДинфоб'!#REF! ->  | F35: ='1ОиДинфоб'!#REF! ->  | G35: ='1ОиДинфоб'!#REF! ->  | I35: ='2КомУслОц'!#REF! ->  | J35: ='2КомУслОц'!#REF! ->  | L35: ='3УслДостИнвОц'!#REF! ->  | M35: ='3УслДостИнвОц'!#REF! ->  | N35: ='3УслДостИнвОц'!#REF! ->  | P35: ='4ДобрВежл'!#REF! ->  | Q35: ='4ДобрВежл'!#REF! ->  | R35: ='4ДобрВежл'!#REF! ->  | T35: ='5УдовлУсл'!#REF! ->  | U35: ='5УдовлУсл'!#REF! ->  | V35: ='5УдовлУсл'!#REF! -> 
B36: Новичихинский район | C36: МКОУДО «Новичихинская детско-юношеская спортивная школа» | E36: ='1ОиДинфоб'!#REF! ->  | F36: ='1ОиДинфоб'!#REF! ->  | G36: ='1ОиДинфоб'!#REF! ->  | I36: ='2КомУслОц'!#REF! ->  | J36: ='2КомУслОц'!#REF! ->  | L36: ='3УслДостИнвОц'!#REF! ->  | M36: ='3УслДостИнвОц'!#REF! ->  | N36: ='3УслДостИнвОц'!#REF! ->  | P36: ='4ДобрВежл'!#REF! ->  | Q36: ='4ДобрВежл'!#REF! ->  | R36: ='4ДобрВежл'!#REF! ->  | T36: ='5УдовлУсл'!#REF! ->  | U36: ='5УдовлУсл'!#REF! ->  | V36: ='5УдовлУсл'!#REF! -> 
B37: Ребрихинский район | C37: МКОУДО «Ребрихинский детско-юношеский центр» | D37: =AVERAGE(H37,K37,O37,S37,W37) ->  | E37: ='1ОиДинфоб'!#REF! ->  | F37: ='1ОиДинфоб'!#REF! ->  | G37: ='1ОиДинфоб'!#REF! ->  | H37: =E37+F37+G37 ->  | I37: ='2КомУслОц'!#REF! ->  | J37: ='2КомУслОц'!#REF! ->  | K37: =I37+J37 ->  | L37: ='3УслДостИнвОц'!#REF! ->  | M37: ='3УслДостИнвОц'!#REF! ->  | N37: ='3УслДостИнвОц'!#REF! ->  | O37: =L37+M37+N37 ->  | P37: ='4ДобрВежл'!#REF! ->  | Q37: ='4ДобрВежл'!#REF! ->  | R37: ='4ДобрВежл'!#REF! ->  | S37: =SUM(P37:R37) ->  | T37: ='5УдовлУсл'!#REF! ->  | U37: ='5УдовлУсл'!#REF! ->  | V37: ='5УдовлУсл'!#REF! ->  | W37: =SUM(T37:V37) -> 
B38: г. Славгород | C38: МБУДО «Центр творчества детей и молодежи» г. Славгорода | D38: =AVERAGE(H38,K38,O38,S38,W38) ->  | E38: ='1ОиДинфоб'!#REF! ->  | F38: ='1ОиДинфоб'!#REF! ->  | G38: ='1ОиДинфоб'!#REF! ->  | H38: =E38+F38+G38 ->  | I38: ='2КомУслОц'!#REF! ->  | J38: ='2КомУслОц'!#REF! ->  | K38: =I38+J38 ->  | L38: ='3УслДостИнвОц'!#REF! ->  | M38: ='3УслДостИнвОц'!#REF! ->  | N38: ='3УслДостИнвОц'!#REF! ->  | O38: =L38+M38+N38 ->  | P38: ='4ДобрВежл'!#REF! ->  | Q38: ='4ДобрВежл'!#REF! ->  | R38: ='4ДобрВежл'!#REF! ->  | S38: =SUM(P38:R38) ->  | T38: ='5УдовлУсл'!#REF! ->  | U38: ='5УдовлУсл'!#REF! ->  | V38: ='5УдовлУсл'!#REF! ->  | W38: =SUM(T38:V38) -> 
A39: 28 | B39: Романовский район | C39: МБУДО «Романовский детско-юношеский центр» | D39: =AVERAGE(H39,K39,O39,S39,W39) -> 91.102 | E39: ='1ОиДинфоб'!G4 -> 30 | F39: ='1ОиДинфоб'!J4 -> 27 | G39: ='1ОиДинфоб'!P4 -> 40 | H39: =E39+F39+G39 -> 97 | I39: ='2КомУслОц'!F5 -> 50 | J39: ='2КомУслОц'!J5 -> 49 | K39: =I39+J39 -> 99 | L39: ='3УслДостИнвОц'!F4 -> 6 | M39: ='3УслДостИнвОц'!I4 -> 24 | N39: ='3УслДостИнвОц'!M4 -> 30 | O39: =L39+M39+N39 -> 60 | P39: ='4ДобрВежл'!H4 -> 40 | Q39: ='4ДобрВежл'!L4 -> 40 | R39: ='4ДобрВежл'!P4 -> 19.56 | S39: =SUM(P39:R39) -> 99.56 | T39: ='5УдовлУсл'!H4 -> 30 | U39: ='5УдовлУсл'!L4 -> 20 | V39: ='5УдовлУсл'!P4 -> 49.95 | W39: =SUM(T39:V39) -> 99.95
A40: 29 | B40: Шелаболихинский район | C40: МБУДО «Шелаболихинский центр детского творчества» | D40: =AVERAGE(H40,K40,O40,S40,W40) ->  | E40: ='1ОиДинфоб'!#REF! ->  | F40: ='1ОиДинфоб'!#REF! ->  | G40: ='1ОиДинфоб'!#REF! ->  | H40: =E40+F40+G40 ->  | I40: ='2КомУслОц'!#REF! ->  | J40: ='2КомУслОц'!#REF! ->  | K40: =I40+J40 ->  | L40: ='3УслДостИнвОц'!#REF! ->  | M40: ='3УслДостИнвОц'!#REF! ->  | N40: ='3УслДостИнвОц'!#REF! ->  | O40: =L40+M40+N40 ->  | P40: ='4ДобрВежл'!#REF! ->  | Q40: ='4ДобрВежл'!#REF! ->  | R40: ='4ДобрВежл'!#REF! ->  | S40: =SUM(P40:R40) ->  | T40: ='5УдовлУсл'!#REF! ->  | U40: ='5УдовлУсл'!#REF! ->  | V40: ='5УдовлУсл'!#REF! ->  | W40: =SUM(T40:V40) -> 
A41: 30 | B41: Поспелихинский район | C41: МКУДО «Поспелихинский районный центр детского творчества» | E41: ='1ОиДинфоб'!#REF! ->  | F41: ='1ОиДинфоб'!#REF! ->  | G41: ='1ОиДинфоб'!#REF! ->  | I41: ='2КомУслОц'!#REF! ->  | J41: ='2КомУслОц'!#REF! ->  | L41: ='3УслДостИнвОц'!#REF! ->  | M41: ='3УслДостИнвОц'!#REF! ->  | N41: ='3УслДостИнвОц'!#REF! ->  | P41: ='4ДобрВежл'!#REF! ->  | Q41: ='4ДобрВежл'!#REF! ->  | R41: ='4ДобрВежл'!#REF! ->  | T41: ='5УдовлУсл'!#REF! ->  | U41: ='5УдовлУсл'!#REF! ->  | V41: ='5УдовлУсл'!#REF! -> 
A42: 31 | B42: Родинский район | C42: МБУДО «Детский оздоровительно-образовательный центр Родинского района | D42: =AVERAGE(H42,K42,O42,S42,W42) ->  | E42: ='1ОиДинфоб'!#REF! ->  | F42: ='1ОиДинфоб'!#REF! ->  | G42: ='1ОиДинфоб'!#REF! ->  | H42: =E42+F42+G42 ->  | I42: ='2КомУслОц'!#REF! ->  | J42: ='2КомУслОц'!#REF! ->  | K42: =I42+J42 ->  | L42: ='3УслДостИнвОц'!#REF! ->  | M42: ='3УслДостИнвОц'!#REF! ->  | N42: ='3УслДостИнвОц'!#REF! ->  | O42: =L42+M42+N42 ->  | P42: ='4ДобрВежл'!#REF! ->  | Q42: ='4ДобрВежл'!#REF! ->  | R42: ='4ДобрВежл'!#REF! ->  | S42: =SUM(P42:R42) ->  | T42: ='5УдовлУсл'!#REF! ->  | U42: ='5УдовлУсл'!#REF! ->  | V42: ='5УдовлУсл'!#REF! ->  | W42: =SUM(T42:V42) -> 
A43: 32 | B43: г. Алейск | C43: МБУДО «Центр детского творчества» (г. Алейск) | E43: ='1ОиДинфоб'!#REF! ->  | F43: ='1ОиДинфоб'!#REF! ->  | G43: ='1ОиДинфоб'!#REF! ->  | I43: ='2КомУслОц'!#REF! ->  | J43: ='2КомУслОц'!#REF! ->  | L43: ='3УслДостИнвОц'!#REF! ->  | M43: ='3УслДостИнвОц'!#REF! ->  | N43: ='3УслДостИнвОц'!#REF! ->  | P43: ='4ДобрВежл'!#REF! ->  | Q43: ='4ДобрВежл'!#REF! ->  | R43: ='4ДобрВежл'!#REF! ->  | T43: ='5УдовлУсл'!#REF! ->  | U43: ='5УдовлУсл'!#REF! ->  | V43: ='5УдовлУсл'!#REF! -> 
A44: 33 | B44: Тальменский район | C44: МКУДО «Тальменский центр внешкольной работы» | E44: ='1ОиДинфоб'!#REF! ->  | F44: ='1ОиДинфоб'!#REF! ->  | G44: ='1ОиДинфоб'!#REF! ->  | I44: ='2КомУслОц'!#REF! ->  | J44: ='2КомУслОц'!#REF! ->  | L44: ='3УслДостИнвОц'!#REF! ->  | M44: ='3УслДостИнвОц'!#REF! ->  | N44: ='3УслДостИнвОц'!#REF! ->  | P44: ='4ДобрВежл'!#REF! ->  | Q44: ='4ДобрВежл'!#REF! ->  | R44: ='4ДобрВежл'!#REF! ->  | T44: ='5УдовлУсл'!#REF! ->  | U44: ='5УдовлУсл'!#REF! ->  | V44: ='5УдовлУсл'!#REF! -> 
A45: 34 | B45: г. Барнаул | C45: МБУДО «Центр детского творчества» Центрального района г. Барнаула | D45: =AVERAGE(H45,K45,O45,S45,W45) ->  | E45: ='1ОиДинфоб'!#REF! ->  | F45: ='1ОиДинфоб'!#REF! ->  | G45: ='1ОиДинфоб'!#REF! ->  | H45: =E45+F45+G45 ->  | I45: ='2КомУслОц'!#REF! ->  | J45: ='2КомУслОц'!#REF! ->  | K45: =I45+J45 ->  | L45: ='3УслДостИнвОц'!#REF! ->  | M45: ='3УслДостИнвОц'!#REF! ->  | N45: ='3УслДостИнвОц'!#REF! ->  | O45: =L45+M45+N45 ->  | P45: ='4ДобрВежл'!#REF! ->  | Q45: ='4ДобрВежл'!#REF! ->  | R45: ='4ДобрВежл'!#REF! ->  | S45: =SUM(P45:R45) ->  | T45: ='5УдовлУсл'!#REF! ->  | U45: ='5УдовлУсл'!#REF! ->  | V45: ='5УдовлУсл'!#REF! ->  | W45: =SUM(T45:V45) -> 
A46: 35 | B46: г. Барнаул | C46: КГБУДО «Алтайский краевой дворец творчества детей и молодежи» | E46: ='1ОиДинфоб'!#REF! ->  | F46: ='1ОиДинфоб'!#REF! ->  | G46: ='1ОиДинфоб'!#REF! ->  | I46: ='2КомУслОц'!#REF! ->  | J46: ='2КомУслОц'!#REF! ->  | L46: ='3УслДостИнвОц'!#REF! ->  | M46: ='3УслДостИнвОц'!#REF! ->  | N46: ='3УслДостИнвОц'!#REF! ->  | P46: ='4ДобрВежл'!#REF! ->  | Q46: ='4ДобрВежл'!#REF! ->  | R46: ='4ДобрВежл'!#REF! ->  | T46: ='5УдовлУсл'!#REF! ->  | U46: ='5УдовлУсл'!#REF! ->  | V46: ='5УдовлУсл'!#REF! -> 
B47: Смоленский район | C47: МБУДО «Смоленский дом детского творчества» | D47: =AVERAGE(H47,K47,O47,S47,W47) ->  | E47: ='1ОиДинфоб'!#REF! ->  | F47: ='1ОиДинфоб'!#REF! ->  | G47: ='1ОиДинфоб'!#REF! ->  | H47: =E47+F47+G47 ->  | I47: ='2КомУслОц'!#REF! ->  | J47: ='2КомУслОц'!#REF! ->  | K47: =I47+J47 ->  | L47: ='3УслДостИнвОц'!#REF! ->  | M47: ='3УслДостИнвОц'!#REF! ->  | N47: ='3УслДостИнвОц'!#REF! ->  | O47: =L47+M47+N47 ->  | P47: ='4ДобрВежл'!#REF! ->  | Q47: ='4ДобрВежл'!#REF! ->  | R47: ='4ДобрВежл'!#REF! ->  | S47: =SUM(P47:R47) ->  | T47: ='5УдовлУсл'!#REF! ->  | U47: ='5УдовлУсл'!#REF! ->  | V47: ='5УдовлУсл'!#REF! ->  | W47: =SUM(T47:V47) -> 
A48: 36 | B48: г. Бийск | C48: МБУДО «Детский эколого-туристический центр» г. Бийска | E48: ='1ОиДинфоб'!#REF! ->  | F48: ='1ОиДинфоб'!#REF! ->  | G48: ='1ОиДинфоб'!#REF! ->  | I48: ='2КомУслОц'!#REF! ->  | J48: ='2КомУслОц'!#REF! ->  | L48: ='3УслДостИнвОц'!#REF! ->  | M48: ='3УслДостИнвОц'!#REF! ->  | N48: ='3УслДостИнвОц'!#REF! ->  | P48: ='4ДобрВежл'!#REF! ->  | Q48: ='4ДобрВежл'!#REF! ->  | R48: ='4ДобрВежл'!#REF! ->  | T48: ='5УдовлУсл'!#REF! ->  | U48: ='5УдовлУсл'!#REF! ->  | V48: ='5УдовлУсл'!#REF! -> 
B49: Михайловский район | C49: МКОДО «Михайловский образовательно-оздоровительный центр Им. Ю.А. Гагарина» | E49: ='1ОиДинфоб'!#REF! ->  | F49: ='1ОиДинфоб'!#REF! ->  | G49: ='1ОиДинфоб'!#REF! ->  | I49: ='2КомУслОц'!#REF! ->  | J49: ='2КомУслОц'!#REF! ->  | L49: ='3УслДостИнвОц'!#REF! ->  | M49: ='3УслДостИнвОц'!#REF! ->  | N49: ='3УслДостИнвОц'!#REF! ->  | P49: ='4ДобрВежл'!#REF! ->  | Q49: ='4ДобрВежл'!#REF! ->  | R49: ='4ДобрВежл'!#REF! ->  | T49: ='5УдовлУсл'!#REF! ->  | U49: ='5УдовлУсл'!#REF! ->  | V49: ='5УдовлУсл'!#REF! -> 
A50: 37 | B50: г. Барнаул | C50: МБУДО «Центр развития творчества детей и юношества» Индустриального района г. Барнаула | E50: ='1ОиДинфоб'!#REF! ->  | F50: ='1ОиДинфоб'!#REF! ->  | G50: ='1ОиДинфоб'!#REF! ->  | I50: ='2КомУслОц'!#REF! ->  | J50: ='2КомУслОц'!#REF! ->  | L50: ='3УслДостИнвОц'!#REF! ->  | M50: ='3УслДостИнвОц'!#REF! ->  | N50: ='3УслДостИнвОц'!#REF! ->  | P50: ='4ДобрВежл'!#REF! ->  | Q50: ='4ДобрВежл'!#REF! ->  | R50: ='4ДобрВежл'!#REF! ->  | T50: ='5УдовлУсл'!#REF! ->  | U50: ='5УдовлУсл'!#REF! ->  | V50: ='5УдовлУсл'!#REF! -> 
B51: Бийский район | C51: МБУДО «Центр внешкольной работы» Бийского района | E51: ='1ОиДинфоб'!#REF! ->  | F51: ='1ОиДинфоб'!#REF! ->  | G51: ='1ОиДинфоб'!#REF! ->  | I51: ='2КомУслОц'!#REF! ->  | J51: ='2КомУслОц'!#REF! ->  | L51: ='3УслДостИнвОц'!#REF! ->  | M51: ='3УслДостИнвОц'!#REF! ->  | N51: ='3УслДостИнвОц'!#REF! ->  | P51: ='4ДобрВежл'!#REF! ->  | Q51: ='4ДобрВежл'!#REF! ->  | R51: ='4ДобрВежл'!#REF! ->  | T51: ='5УдовлУсл'!#REF! ->  | U51: ='5УдовлУсл'!#REF! ->  | V51: ='5УдовлУсл'!#REF! -> 
A52: 38 | B52: г. Барнаул | C52: МБУДО «Центр эстетического воспитания «Песнохорки» | E52: ='1ОиДинфоб'!#REF! ->  | F52: ='1ОиДинфоб'!#REF! ->  | G52: ='1ОиДинфоб'!#REF! ->  | I52: ='2КомУслОц'!#REF! ->  | J52: ='2КомУслОц'!#REF! ->  | L52: ='3УслДостИнвОц'!#REF! ->  | M52: ='3УслДостИнвОц'!#REF! ->  | N52: ='3УслДостИнвОц'!#REF! ->  | P52: ='4ДобрВежл'!#REF! ->  | Q52: ='4ДобрВежл'!#REF! ->  | R52: ='4ДобрВежл'!#REF! ->  | T52: ='5УдовлУсл'!#REF! ->  | U52: ='5УдовлУсл'!#REF! ->  | V52: ='5УдовлУсл'!#REF! -> 
B53: г. Бийск | C53: МБУДО «Дом детского творчества» г. Бийска | E53: ='1ОиДинфоб'!#REF! ->  | F53: ='1ОиДинфоб'!#REF! ->  | G53: ='1ОиДинфоб'!#REF! ->  | I53: ='2КомУслОц'!#REF! ->  | J53: ='2КомУслОц'!#REF! ->  | L53: ='3УслДостИнвОц'!#REF! ->  | M53: ='3УслДостИнвОц'!#REF! ->  | N53: ='3УслДостИнвОц'!#REF! ->  | P53: ='4ДобрВежл'!#REF! ->  | Q53: ='4ДобрВежл'!#REF! ->  | R53: ='4ДобрВежл'!#REF! ->  | T53: ='5УдовлУсл'!#REF! ->  | U53: ='5УдовлУсл'!#REF! ->  | V53: ='5УдовлУсл'!#REF! -> 
A54: 39 | B54: г. Барнаул | C54: МБУДО «Дом художественного творчества детей» (г. Барнаул) | E54: ='1ОиДинфоб'!#REF! ->  | F54: ='1ОиДинфоб'!#REF! ->  | G54: ='1ОиДинфоб'!#REF! ->  | I54: ='2КомУслОц'!#REF! ->  | J54: ='2КомУслОц'!#REF! ->  | L54: ='3УслДостИнвОц'!#REF! ->  | M54: ='3УслДостИнвОц'!#REF! ->  | N54: ='3УслДостИнвОц'!#REF! ->  | P54: ='4ДобрВежл'!#REF! ->  | Q54: ='4ДобрВежл'!#REF! ->  | R54: ='4ДобрВежл'!#REF! ->  | T54: ='5УдовлУсл'!#REF! ->  | U54: ='5УдовлУсл'!#REF! ->  | V54: ='5УдовлУсл'!#REF! -> 
B55: Михайловский район | C55: МКУДО «Михайловская детско-юношеская спортивная школа» | E55: ='1ОиДинфоб'!#REF! ->  | F55: ='1ОиДинфоб'!#REF! ->  | G55: ='1ОиДинфоб'!#REF! ->  | I55: ='2КомУслОц'!#REF! ->  | J55: ='2КомУслОц'!#REF! ->  | L55: ='3УслДостИнвОц'!#REF! ->  | M55: ='3УслДостИнвОц'!#REF! ->  | N55: ='3УслДостИнвОц'!#REF! ->  | P55: ='4ДобрВежл'!#REF! ->  | Q55: ='4ДобрВежл'!#REF! ->  | R55: ='4ДобрВежл'!#REF! ->  | T55: ='5УдовлУсл'!#REF! ->  | U55: ='5УдовлУсл'!#REF! ->  | V55: ='5УдовлУсл'!#REF! -> 
A56: 40 | B56: Краснощековский район | C56: МБУДО «Краснощековский районный детско-юношеский центр» | E56: ='1ОиДинфоб'!#REF! ->  | F56: ='1ОиДинфоб'!#REF! ->  | G56: ='1ОиДинфоб'!#REF! ->  | I56: ='2КомУслОц'!#REF! ->  | J56: ='2КомУслОц'!#REF! ->  | L56: ='3УслДостИнвОц'!#REF! ->  | M56: ='3УслДостИнвОц'!#REF! ->  | N56: ='3УслДостИнвОц'!#REF! ->  | P56: ='4ДобрВежл'!#REF! ->  | Q56: ='4ДобрВежл'!#REF! ->  | R56: ='4ДобрВежл'!#REF! ->  | T56: ='5УдовлУсл'!#REF! ->  | U56: ='5УдовлУсл'!#REF! ->  | V56: ='5УдовлУсл'!#REF! -> 
A57: 41 | B57: г. Рубцовск | C57: МБУДО «Детско-юношеский центр» г. Рубцовска | E57: ='1ОиДинфоб'!#REF! ->  | F57: ='1ОиДинфоб'!#REF! ->  | G57: ='1ОиДинфоб'!#REF! ->  | I57: ='2КомУслОц'!#REF! ->  | J57: ='2КомУслОц'!#REF! ->  | L57: ='3УслДостИнвОц'!#REF! ->  | M57: ='3УслДостИнвОц'!#REF! ->  | N57: ='3УслДостИнвОц'!#REF! ->  | P57: ='4ДобрВежл'!#REF! ->  | Q57: ='4ДобрВежл'!#REF! ->  | R57: ='4ДобрВежл'!#REF! ->  | T57: ='5УдовлУсл'!#REF! ->  | U57: ='5УдовлУсл'!#REF! ->  | V57: ='5УдовлУсл'!#REF! -> 
B58: Третьяковский район | C58: МБОУДО «Центр развития творчества детей и юношества» Третьяковского района | E58: ='1ОиДинфоб'!#REF! ->  | F58: ='1ОиДинфоб'!#REF! ->  | G58: ='1ОиДинфоб'!#REF! ->  | I58: ='2КомУслОц'!#REF! ->  | J58: ='2КомУслОц'!#REF! ->  | L58: ='3УслДостИнвОц'!#REF! ->  | M58: ='3УслДостИнвОц'!#REF! ->  | N58: ='3УслДостИнвОц'!#REF! ->  | P58: ='4ДобрВежл'!#REF! ->  | Q58: ='4ДобрВежл'!#REF! ->  | R58: ='4ДобрВежл'!#REF! ->  | T58: ='5УдовлУсл'!#REF! ->  | U58: ='5УдовлУсл'!#REF! ->  | V58: ='5УдовлУсл'!#REF! -> 
A59: 42 | B59: г. Барнаул | C59: МБУДО «Барнаульский городской детско-юношеский центр» | E59: ='1ОиДинфоб'!#REF! ->  | F59: ='1ОиДинфоб'!#REF! ->  | G59: ='1ОиДинфоб'!#REF! ->  | I59: ='2КомУслОц'!#REF! ->  | J59: 49.5 | L59: ='3УслДостИнвОц'!#REF! ->  | M59: ='3УслДостИнвОц'!#REF! ->  | N59: ='3УслДостИнвОц'!#REF! ->  | P59: ='4ДобрВежл'!#REF! ->  | Q59: ='4ДобрВежл'!#REF! ->  | R59: ='4ДобрВежл'!#REF! ->  | T59: ='5УдовлУсл'!#REF! ->  | U59: ='5УдовлУсл'!#REF! ->  | V59: ='5УдовлУсл'!#REF! -> 
A60: 43 | B60: Каменский район | C60: МБУДО «Каменский многопрофильный образовательный центр» | E60: ='1ОиДинфоб'!#REF! ->  | F60: ='1ОиДинфоб'!#REF! ->  | G60: ='1ОиДинфоб'!#REF! ->  | I60: ='2КомУслОц'!#REF! ->  | J60: ='2КомУслОц'!#REF! ->  | L60: ='3УслДостИнвОц'!#REF! ->  | M60: ='3УслДостИнвОц'!#REF! ->  | N60: ='3УслДостИнвОц'!#REF! ->  | P60: ='4ДобрВежл'!#REF! ->  | Q60: ='4ДобрВежл'!#REF! ->  | R60: ='4ДобрВежл'!#REF! ->  | T60: ='5УдовлУсл'!#REF! ->  | U60: ='5УдовлУсл'!#REF! ->  | V60: ='5УдовлУсл'!#REF! -> 
B61: Павловский район | C61: МБУДО «Павловский детско-юношеский центр» | D61: =AVERAGE(H61,K61,O61,S61,W61) ->  | E61: ='1ОиДинфоб'!#REF! ->  | F61: ='1ОиДинфоб'!#REF! ->  | G61: ='1ОиДинфоб'!#REF! ->  | H61: =E61+F61+G61 ->  | I61: ='2КомУслОц'!#REF! ->  | J61: ='2КомУслОц'!#REF! ->  | K61: =I61+J61 ->  | L61: ='3УслДостИнвОц'!#REF! ->  | M61: ='3УслДостИнвОц'!#REF! ->  | N61: ='3УслДостИнвОц'!#REF! ->  | O61: =L61+M61+N61 ->  | P61: ='4ДобрВежл'!#REF! ->  | Q61: ='4ДобрВежл'!#REF! ->  | R61: ='4ДобрВежл'!#REF! ->  | S61: =SUM(P61:R61) ->  | T61: ='5УдовлУсл'!#REF! ->  | U61: ='5УдовлУсл'!#REF! ->  | V61: ='5УдовлУсл'!#REF! ->  | W61: =SUM(T61:V61) -> 
A62: 44 | B62: Целинный район | C62: МБУДО «Центр творчества и отдыха» Целинного района | D62: =AVERAGE(H62,K62,O62,S62,W62) ->  | E62: ='1ОиДинфоб'!#REF! ->  | F62: ='1ОиДинфоб'!#REF! ->  | G62: ='1ОиДинфоб'!#REF! ->  | H62: =E62+F62+G62 ->  | I62: ='2КомУслОц'!#REF! ->  | J62: ='2КомУслОц'!#REF! ->  | K62: =I62+J62 ->  | L62: ='3УслДостИнвОц'!#REF! ->  | M62: ='3УслДостИнвОц'!#REF! ->  | N62: ='3УслДостИнвОц'!#REF! ->  | O62: =L62+M62+N62 ->  | P62: ='4ДобрВежл'!#REF! ->  | Q62: ='4ДобрВежл'!#REF! ->  | R62: ='4ДобрВежл'!#REF! ->  | S62: =SUM(P62:R62) ->  | T62: ='5УдовлУсл'!#REF! ->  | U62: ='5УдовлУсл'!#REF! ->  | V62: ='5УдовлУсл'!#REF! ->  | W62: =SUM(T62:V62) -> 
A63: 45 | B63: г. Барнаул | C63: МБУДО «Детский оздоровительно-образовательный (профильный) центр Гармония» | E63: ='1ОиДинфоб'!#REF! ->  | F63: ='1ОиДинфоб'!#REF! ->  | G63: ='1ОиДинфоб'!#REF! ->  | I63: ='2КомУслОц'!#REF! ->  | J63: ='2КомУслОц'!#REF! ->  | L63: ='3УслДостИнвОц'!#REF! ->  | M63: ='3УслДостИнвОц'!#REF! ->  | N63: ='3УслДостИнвОц'!#REF! ->  | P63: ='4ДобрВежл'!#REF! ->  | Q63: ='4ДобрВежл'!#REF! ->  | R63: ='4ДобрВежл'!#REF! ->  | T63: ='5УдовлУсл'!#REF! ->  | U63: ='5УдовлУсл'!#REF! ->  | V63: ='5УдовлУсл'!#REF! -> 
B64: Панкрушихинский район | C64: МБОУДО «Панкрушихинский районный Центр творчества» | E64: ='1ОиДинфоб'!#REF! ->  | F64: ='1ОиДинфоб'!#REF! ->  | G64: ='1ОиДинфоб'!#REF! ->  | I64: ='2КомУслОц'!#REF! ->  | J64: ='2КомУслОц'!#REF! ->  | L64: ='3УслДостИнвОц'!#REF! ->  | M64: ='3УслДостИнвОц'!#REF! ->  | N64: ='3УслДостИнвОц'!#REF! ->  | P64: ='4ДобрВежл'!#REF! ->  | Q64: ='4ДобрВежл'!#REF! ->  | R64: ='4ДобрВежл'!#REF! ->  | T64: ='5УдовлУсл'!#REF! ->  | U64: ='5УдовлУсл'!#REF! ->  | V64: ='5УдовлУсл'!#REF! -> 
A65: 46 | B65: г. Барнаул | C65: МБУДО «Барнаульская городская станция юных техников» | E65: ='1ОиДинфоб'!#REF! ->  | F65: ='1ОиДинфоб'!#REF! ->  | G65: ='1ОиДинфоб'!#REF! ->  | I65: ='2КомУслОц'!#REF! ->  | J65: ='2КомУслОц'!#REF! ->  | L65: ='3УслДостИнвОц'!#REF! ->  | M65: ='3УслДостИнвОц'!#REF! ->  | N65: ='3УслДостИнвОц'!#REF! ->  | P65: ='4ДобрВежл'!#REF! ->  | Q65: ='4ДобрВежл'!#REF! ->  | R65: ='4ДобрВежл'!#REF! ->  | T65: ='5УдовлУсл'!#REF! ->  | U65: ='5УдовлУсл'!#REF! ->  | V65: ='5УдовлУсл'!#REF! -> 
A66: 47 | B66: Быстроистокский район | C66: МБУДО «Быстроистокская детско-юношеская спортивная школа» | E66: ='1ОиДинфоб'!#REF! ->  | F66: ='1ОиДинфоб'!#REF! ->  | G66: ='1ОиДинфоб'!#REF! ->  | I66: ='2КомУслОц'!#REF! ->  | J66: ='2КомУслОц'!#REF! ->  | L66: ='3УслДостИнвОц'!#REF! ->  | M66: ='3УслДостИнвОц'!#REF! ->  | N66: ='3УслДостИнвОц'!#REF! ->  | P66: ='4ДобрВежл'!#REF! ->  | Q66: ='4ДобрВежл'!#REF! ->  | R66: ='4ДобрВежл'!#REF! ->  | T66: ='5УдовлУсл'!#REF! ->  | U66: ='5УдовлУсл'!#REF! ->  | V66: ='5УдовлУсл'!#REF! -> 
A67: 48 | B67: г. Барнаул | C67: МБУДО «Детско-юношеский центр» Индустриального района г. Барнаула | E67: ='1ОиДинфоб'!#REF! ->  | F67: ='1ОиДинфоб'!#REF! ->  | G67: ='1ОиДинфоб'!#REF! ->  | I67: ='2КомУслОц'!#REF! ->  | J67: ='2КомУслОц'!#REF! ->  | L67: ='3УслДостИнвОц'!#REF! ->  | M67: ='3УслДостИнвОц'!#REF! ->  | N67: ='3УслДостИнвОц'!#REF! ->  | P67: ='4ДобрВежл'!#REF! ->  | Q67: ='4ДобрВежл'!#REF! ->  | R67: ='4ДобрВежл'!#REF! ->  | T67: ='5УдовлУсл'!#REF! ->  | U67: ='5УдовлУсл'!#REF! ->  | V67: ='5УдовлУсл'!#REF! -> 
B68: Курьинский район | C68: МБУДО «Дом детского творчества» Курьинского района | E68: ='1ОиДинфоб'!#REF! ->  | F68: ='1ОиДинфоб'!#REF! ->  | G68: ='1ОиДинфоб'!#REF! ->  | I68: ='2КомУслОц'!#REF! ->  | J68: ='2КомУслОц'!#REF! ->  | L68: ='3УслДостИнвОц'!#REF! ->  | M68: ='3УслДостИнвОц'!#REF! ->  | N68: ='3УслДостИнвОц'!#REF! ->  | P68: ='4ДобрВежл'!#REF! ->  | Q68: ='4ДобрВежл'!#REF! ->  | R68: ='4ДобрВежл'!#REF! ->  | T68: ='5УдовлУсл'!#REF! ->  | U68: ='5УдовлУсл'!#REF! ->  | V68: ='5УдовлУсл'!#REF! -> 
B69: Солтонский район | C69: МКОУДО «Детско-юношеский центр» Солтонского района | E69: ='1ОиДинфоб'!#REF! ->  | F69: ='1ОиДинфоб'!#REF! ->  | G69: ='1ОиДинфоб'!#REF! ->  | I69: ='2КомУслОц'!#REF! ->  | J69: ='2КомУслОц'!#REF! ->  | L69: ='3УслДостИнвОц'!#REF! ->  | M69: ='3УслДостИнвОц'!#REF! ->  | N69: ='3УслДостИнвОц'!#REF! ->  | P69: ='4ДобрВежл'!#REF! ->  | Q69: ='4ДобрВежл'!#REF! ->  | R69: ='4ДобрВежл'!#REF! ->  | T69: ='5УдовлУсл'!#REF! ->  | U69: ='5УдовлУсл'!#REF! ->  | V69: ='5УдовлУсл'!#REF! -> 
A70: 49 | B70: г. Барнаул | C70: МБУДО Центр внешкольной работы «Военно-спортивный клуб «Борец» | E70: ='1ОиДинфоб'!#REF! ->  | F70: ='1ОиДинфоб'!#REF! ->  | G70: ='1ОиДинфоб'!#REF! ->  | I70: ='2КомУслОц'!#REF! ->  | J70: ='2КомУслОц'!#REF! ->  | L70: ='3УслДостИнвОц'!#REF! ->  | M70: ='3УслДостИнвОц'!#REF! ->  | N70: ='3УслДостИнвОц'!#REF! ->  | P70: ='4ДобрВежл'!#REF! ->  | Q70: ='4ДобрВежл'!#REF! ->  | R70: ='4ДобрВежл'!#REF! ->  | T70: ='5УдовлУсл'!#REF! ->  | U70: ='5УдовлУсл'!#REF! ->  | V70: ='5УдовлУсл'!#REF! -> 
B71: Усть-Калманский район | C71: МБУДО «Центр детского творчества» Усть-Калманского района | E71: ='1ОиДинфоб'!#REF! ->  | F71: ='1ОиДинфоб'!#REF! ->  | G71: ='1ОиДинфоб'!#REF! ->  | I71: ='2КомУслОц'!#REF! ->  | J71: ='2КомУслОц'!#REF! ->  | L71: ='3УслДостИнвОц'!#REF! ->  | M71: ='3УслДостИнвОц'!#REF! ->  | N71: ='3УслДостИнвОц'!#REF! ->  | P71: ='4ДобрВежл'!#REF! ->  | Q71: ='4ДобрВежл'!#REF! ->  | R71: ='4ДобрВежл'!#REF! ->  | S71: 100 | T71: ='5УдовлУсл'!#REF! ->  | U71: ='5УдовлУсл'!#REF! ->  | V71: ='5УдовлУсл'!#REF! -> 
A72: 50 | B72: г. Рубцовск | C72: МБУДО «Центр развития творчества» г. Рубцовска | E72: ='1ОиДинфоб'!#REF! ->  | F72: ='1ОиДинфоб'!#REF! ->  | G72: ='1ОиДинфоб'!#REF! ->  | I72: ='2КомУслОц'!#REF! ->  | J72: ='2КомУслОц'!#REF! ->  | L72: ='3УслДостИнвОц'!#REF! ->  | M72: ='3УслДостИнвОц'!#REF! ->  | N72: ='3УслДостИнвОц'!#REF! ->  | P72: ='4ДобрВежл'!#REF! ->  | Q72: ='4ДобрВежл'!#REF! ->  | R72: ='4ДобрВежл'!#REF! ->  | S72: =SUM(P72:R72) ->  | T72: ='5УдовлУсл'!#REF! ->  | U72: ='5УдовлУсл'!#REF! ->  | V72: ='5УдовлУсл'!#REF! -> 
A73: 51 | B73: Первомайский район | C73: МБУДО «Центр творчества детей и молодежи «Созвездие» Первомайского района | E73: ='1ОиДинфоб'!#REF! ->  | F73: ='1ОиДинфоб'!#REF! ->  | G73: ='1ОиДинфоб'!#REF! ->  | I73: ='2КомУслОц'!#REF! ->  | J73: ='2КомУслОц'!#REF! ->  | L73: ='3УслДостИнвОц'!#REF! ->  | M73: ='3УслДостИнвОц'!#REF! ->  | N73: ='3УслДостИнвОц'!#REF! ->  | P73: ='4ДобрВежл'!#REF! ->  | Q73: ='4ДобрВежл'!#REF! ->  | R73: ='4ДобрВежл'!#REF! ->  | S73: =SUM(P73:R73) ->  | T73: ='5УдовлУсл'!#REF! ->  | U73: ='5УдовлУсл'!#REF! ->  | V73: ='5УдовлУсл'!#REF! -> 
A74: 52 | B74: г. Рубцовск | C74: МБУДО «Центр внешкольной работы «Малая Академия» г. Рубцовска | D74: =AVERAGE(H74,K74,O74,S74,W74) ->  | E74: ='1ОиДинфоб'!#REF! ->  | F74: ='1ОиДинфоб'!#REF! ->  | G74: ='1ОиДинфоб'!#REF! ->  | H74: =E74+F74+G74 ->  | I74: ='2КомУслОц'!#REF! ->  | J74: ='2КомУслОц'!#REF! ->  | K74: =I74+J74 ->  | L74: ='3УслДостИнвОц'!#REF! ->  | M74: ='3УслДостИнвОц'!#REF! ->  | N74: ='3УслДостИнвОц'!#REF! ->  | O74: =L74+M74+N74 ->  | P74: ='4ДобрВежл'!#REF! ->  | Q74: ='4ДобрВежл'!#REF! ->  | R74: ='4ДобрВежл'!#REF! ->  | S74: =SUM(P74:R74) ->  | T74: ='5УдовлУсл'!#REF! ->  | U74: ='5УдовлУсл'!#REF! ->  | V74: ='5УдовлУсл'!#REF! ->  | W74: =SUM(T74:V74) -> 
A75: 53 | B75: г. Барнаул | C75: МБУДО «Барнаульская городская станция юных натуралистов» | D75: =AVERAGE(H75,K75,O75,S75,W75) ->  | E75: ='1ОиДинфоб'!#REF! ->  | F75: ='1ОиДинфоб'!#REF! ->  | G75: ='1ОиДинфоб'!#REF! ->  | H75: =E75+F75+G75 ->  | I75: ='2КомУслОц'!#REF! ->  | J75: ='2КомУслОц'!#REF! ->  | K75: =I75+J75 ->  | L75: ='3УслДостИнвОц'!#REF! ->  | M75: ='3УслДостИнвОц'!#REF! ->  | N75: ='3УслДостИнвОц'!#REF! ->  | O75: =L75+M75+N75 ->  | P75: ='4ДобрВежл'!#REF! ->  | Q75: ='4ДобрВежл'!#REF! ->  | R75: ='4ДобрВежл'!#REF! ->  | S75: =SUM(P75:R75) ->  | T75: ='5УдовлУсл'!#REF! ->  | U75: ='5УдовлУсл'!#REF! ->  | V75: ='5УдовлУсл'!#REF! ->  | W75: =SUM(T75:V75) -> 
B76: Бурлинский район | C76: МБУДО «Бурлинский Центр дополнительного образования» | D76: =AVERAGE(H76,K76,O76,S76,W76) ->  | E76: ='1ОиДинфоб'!#REF! ->  | F76: ='1ОиДинфоб'!#REF! ->  | G76: ='1ОиДинфоб'!#REF! ->  | H76: =E76+F76+G76 ->  | I76: ='2КомУслОц'!#REF! ->  | J76: ='2КомУслОц'!#REF! ->  | K76: =I76+J76 ->  | L76: ='3УслДостИнвОц'!#REF! ->  | M76: ='3УслДостИнвОц'!#REF! ->  | N76: ='3УслДостИнвОц'!#REF! ->  | O76: =L76+M76+N76 ->  | P76: ='4ДобрВежл'!#REF! ->  | Q76: ='4ДобрВежл'!#REF! ->  | R76: ='4ДобрВежл'!#REF! ->  | S76: =SUM(P76:R76) ->  | T76: ='5УдовлУсл'!#REF! ->  | U76: ='5УдовлУсл'!#REF! ->  | V76: ='5УдовлУсл'!#REF! ->  | W76: =SUM(T76:V76) -> 
A77: 54 | B77: Хабарский район | C77: МБУДО «Центр детского творчества» Хабарского района | E77: ='1ОиДинфоб'!#REF! ->  | F77: ='1ОиДинфоб'!#REF! ->  | G77: ='1ОиДинфоб'!#REF! ->  | I77: ='2КомУслОц'!#REF! ->  | J77: ='2КомУслОц'!#REF! ->  | L77: ='3УслДостИнвОц'!#REF! ->  | M77: ='3УслДостИнвОц'!#REF! ->  | N77: ='3УслДостИнвОц'!#REF! ->  | P77: ='4ДобрВежл'!#REF! ->  | Q77: ='4ДобрВежл'!#REF! ->  | R77: ='4ДобрВежл'!#REF! ->  | T77: ='5УдовлУсл'!#REF! ->  | U77: ='5УдовлУсл'!#REF! ->  | V77: ='5УдовлУсл'!#REF! -> 
A78: 55 | B78: г. Барнаул | C78: МБУДО «Центр детского творчества» Октябрьского района г. Барнаула | E78: ='1ОиДинфоб'!#REF! ->  | F78: ='1ОиДинфоб'!#REF! ->  | G78: ='1ОиДинфоб'!#REF! ->  | I78: ='2КомУслОц'!#REF! ->  | J78: ='2КомУслОц'!#REF! ->  | L78: ='3УслДостИнвОц'!#REF! ->  | M78: ='3УслДостИнвОц'!#REF! ->  | N78: ='3УслДостИнвОц'!#REF! ->  | P78: ='4ДобрВежл'!#REF! ->  | Q78: ='4ДобрВежл'!#REF! ->  | R78: ='4ДобрВежл'!#REF! ->  | T78: ='5УдовлУсл'!#REF! ->  | U78: ='5УдовлУсл'!#REF! ->  | V78: ='5УдовлУсл'!#REF! -> 
A79: 56 | B79: Тогульский район | C79: МКУДО «Центр творчества, спорта и отдыха» Тогульского района | D79: =AVERAGE(H79,K79,O79,S79,W79) ->  | E79: ='1ОиДинфоб'!#REF! ->  | F79: ='1ОиДинфоб'!#REF! ->  | G79: ='1ОиДинфоб'!#REF! ->  | H79: =E79+F79+G79 ->  | I79: ='2КомУслОц'!#REF! ->  | J79: ='2КомУслОц'!#REF! ->  | K79: =I79+J79 ->  | L79: ='3УслДостИнвОц'!#REF! ->  | M79: ='3УслДостИнвОц'!#REF! ->  | N79: ='3УслДостИнвОц'!#REF! ->  | O79: =L79+M79+N79 ->  | P79: ='4ДобрВежл'!#REF! ->  | Q79: ='4ДобрВежл'!#REF! ->  | R79: ='4ДобрВежл'!#REF! ->  | S79: =SUM(P79:R79) ->  | T79: ='5УдовлУсл'!#REF! ->  | U79: ='5УдовлУсл'!#REF! ->  | V79: ='5УдовлУсл'!#REF! ->  | W79: =SUM(T79:V79) -> 
A80: 57 | B80: г. Барнаул | C80: МБУДО «Центр детского (юношеского) технического творчества» Ленинского района г. Барнаула | E80: ='1ОиДинфоб'!#REF! ->  | F80: ='1ОиДинфоб'!#REF! ->  | G80: ='1ОиДинфоб'!#REF! ->  | I80: ='2КомУслОц'!#REF! ->  | J80: ='2КомУслОц'!#REF! ->  | L80: ='3УслДостИнвОц'!#REF! ->  | M80: ='3УслДостИнвОц'!#REF! ->  | N80: ='3УслДостИнвОц'!#REF! ->  | P80: ='4ДобрВежл'!#REF! ->  | Q80: ='4ДобрВежл'!#REF! ->  | R80: ='4ДобрВежл'!#REF! ->  | T80: ='5УдовлУсл'!#REF! ->  | U80: ='5УдовлУсл'!#REF! ->  | V80: ='5УдовлУсл'!#REF! -> 
A81: 58 | B81: ЗАТО Сибирский | C81: МБУДО «Детско-юношеский центр «Росток» ЗАТО Сибирский | E81: ='1ОиДинфоб'!#REF! ->  | F81: ='1ОиДинфоб'!#REF! ->  | G81: ='1ОиДинфоб'!#REF! ->  | I81: ='2КомУслОц'!#REF! ->  | J81: ='2КомУслОц'!#REF! ->  | L81: ='3УслДостИнвОц'!#REF! ->  | M81: ='3УслДостИнвОц'!#REF! ->  | N81: ='3УслДостИнвОц'!#REF! ->  | P81: ='4ДобрВежл'!#REF! ->  | Q81: ='4ДобрВежл'!#REF! ->  | R81: ='4ДобрВежл'!#REF! ->  | T81: ='5УдовлУсл'!#REF! ->  | U81: ='5УдовлУсл'!#REF! ->  | V81: ='5УдовлУсл'!#REF! -> 
A82: 59 | B82: Рубцовский район | C82: МБУДО «Детско-юношеская спортивная школа» Рубцовского района | E82: ='1ОиДинфоб'!#REF! ->  | F82: ='1ОиДинфоб'!#REF! ->  | G82: ='1ОиДинфоб'!#REF! ->  | I82: ='2КомУслОц'!#REF! ->  | J82: ='2КомУслОц'!#REF! ->  | L82: ='3УслДостИнвОц'!#REF! ->  | M82: ='3УслДостИнвОц'!#REF! ->  | N82: ='3УслДостИнвОц'!#REF! ->  | P82: ='4ДобрВежл'!#REF! ->  | Q82: ='4ДобрВежл'!#REF! ->  | R82: ='4ДобрВежл'!#REF! ->  | T82: ='5УдовлУсл'!#REF! ->  | U82: ='5УдовлУсл'!#REF! ->  | V82: ='5УдовлУсл'!#REF! -> 
A83: 60 | B83: г. Барнаул | C83: МБУДО «Центр развития творчества детей и молодежи» Железнодорожного района | E83: ='1ОиДинфоб'!#REF! ->  | F83: ='1ОиДинфоб'!#REF! ->  | G83: ='1ОиДинфоб'!#REF! ->  | I83: ='2КомУслОц'!#REF! ->  | J83: ='2КомУслОц'!#REF! ->  | L83: ='3УслДостИнвОц'!#REF! ->  | M83: ='3УслДостИнвОц'!#REF! ->  | N83: ='3УслДостИнвОц'!#REF! ->  | P83: ='4ДобрВежл'!#REF! ->  | Q83: ='4ДобрВежл'!#REF! ->  | R83: ='4ДобрВежл'!#REF! ->  | T83: ='5УдовлУсл'!#REF! ->  | U83: ='5УдовлУсл'!#REF! ->  | V83: ='5УдовлУсл'!#REF! -> 
B84: Тюменцевский район | C84: МБУДО «Тюменцевский районный центр детского творчества» | E84: ='1ОиДинфоб'!#REF! ->  | F84: ='1ОиДинфоб'!#REF! ->  | G84: ='1ОиДинфоб'!#REF! ->  | I84: ='2КомУслОц'!#REF! ->  | J84: ='2КомУслОц'!#REF! ->  | L84: ='3УслДостИнвОц'!#REF! ->  | M84: ='3УслДостИнвОц'!#REF! ->  | N84: ='3УслДостИнвОц'!#REF! ->  | P84: ='4ДобрВежл'!#REF! ->  | Q84: ='4ДобрВежл'!#REF! ->  | R84: ='4ДобрВежл'!#REF! ->  | T84: ='5УдовлУсл'!#REF! ->  | U84: ='5УдовлУсл'!#REF! ->  | V84: ='5УдовлУсл'!#REF! -> 
A85: 61 | B85: г. Барнаул | C85: МБУДО «Центр физкультурно-спортивной направленности «Акцент» | E85: ='1ОиДинфоб'!#REF! ->  | F85: ='1ОиДинфоб'!#REF! ->  | G85: ='1ОиДинфоб'!#REF! ->  | I85: ='2КомУслОц'!#REF! ->  | J85: ='2КомУслОц'!#REF! ->  | L85: ='3УслДостИнвОц'!#REF! ->  | M85: ='3УслДостИнвОц'!#REF! ->  | N85: ='3УслДостИнвОц'!#REF! ->  | P85: ='4ДобрВежл'!#REF! ->  | Q85: ='4ДобрВежл'!#REF! ->  | R85: ='4ДобрВежл'!#REF! ->  | T85: ='5УдовлУсл'!#REF! ->  | U85: ='5УдовлУсл'!#REF! ->  | V85: ='5УдовлУсл'!#REF! -> 
A86: 62 | B86: г. Белокуриха | C86: МБУДО «Детско-юношеская спортивная школа» г. Белокурихи | E86: ='1ОиДинфоб'!#REF! ->  | F86: ='1ОиДинфоб'!#REF! ->  | G86: ='1ОиДинфоб'!#REF! ->  | I86: ='2КомУслОц'!#REF! ->  | J86: ='2КомУслОц'!#REF! ->  | L86: ='3УслДостИнвОц'!#REF! ->  | M86: ='3УслДостИнвОц'!#REF! ->  | N86: ='3УслДостИнвОц'!#REF! ->  | P86: ='4ДобрВежл'!#REF! ->  | Q86: ='4ДобрВежл'!#REF! ->  | R86: ='4ДобрВежл'!#REF! ->  | T86: ='5УдовлУсл'!#REF! ->  | U86: ='5УдовлУсл'!#REF! ->  | V86: ='5УдовлУсл'!#REF! -> 
A87: 63 | B87: Калманский район | C87: МБУДО «Калманский районный детско-юношеский центр» | E87: ='1ОиДинфоб'!#REF! ->  | F87: ='1ОиДинфоб'!#REF! ->  | G87: ='1ОиДинфоб'!#REF! ->  | I87: ='2КомУслОц'!#REF! ->  | J87: ='2КомУслОц'!#REF! ->  | L87: ='3УслДостИнвОц'!#REF! ->  | M87: ='3УслДостИнвОц'!#REF! ->  | N87: ='3УслДостИнвОц'!#REF! ->  | P87: ='4ДобрВежл'!#REF! ->  | Q87: ='4ДобрВежл'!#REF! ->  | R87: ='4ДобрВежл'!#REF! ->  | T87: ='5УдовлУсл'!#REF! ->  | U87: ='5УдовлУсл'!#REF! ->  | V87: ='5УдовлУсл'!#REF! -> 
B88: Топчихинский район | C88: МКУДО «Топчихинская детско-юношеская спортивная школа» | E88: ='1ОиДинфоб'!#REF! ->  | F88: ='1ОиДинфоб'!#REF! ->  | G88: ='1ОиДинфоб'!#REF! ->  | I88: ='2КомУслОц'!#REF! ->  | J88: ='2КомУслОц'!#REF! ->  | L88: ='3УслДостИнвОц'!#REF! ->  | M88: ='3УслДостИнвОц'!#REF! ->  | N88: ='3УслДостИнвОц'!#REF! ->  | P88: ='4ДобрВежл'!#REF! ->  | Q88: ='4ДобрВежл'!#REF! ->  | R88: ='4ДобрВежл'!#REF! ->  | T88: ='5УдовлУсл'!#REF! ->  | U88: ='5УдовлУсл'!#REF! ->  | V88: ='5УдовлУсл'!#REF! -> 
A89: 64 | B89: Мамонтовский район | C89: МКУДО «Мамонтовская детско-юношеская спортивная школа» | E89: ='1ОиДинфоб'!#REF! ->  | F89: ='1ОиДинфоб'!#REF! ->  | G89: ='1ОиДинфоб'!#REF! ->  | I89: ='2КомУслОц'!#REF! ->  | J89: ='2КомУслОц'!#REF! ->  | L89: ='3УслДостИнвОц'!#REF! ->  | M89: ='3УслДостИнвОц'!#REF! ->  | N89: ='3УслДостИнвОц'!#REF! ->  | P89: ='4ДобрВежл'!#REF! ->  | Q89: ='4ДобрВежл'!#REF! ->  | R89: ='4ДобрВежл'!#REF! ->  | T89: ='5УдовлУсл'!#REF! ->  | U89: ='5УдовлУсл'!#REF! ->  | V89: ='5УдовлУсл'!#REF! -> 
A90: 65 | B90: г. Барнаул | C90: МБУДО «Центр дополнительного образования детей «Память» Пост №1 г. Барнаула» | D90: =AVERAGE(H90,K90,O90,S90,W90) ->  | E90: ='1ОиДинфоб'!#REF! ->  | F90: ='1ОиДинфоб'!#REF! ->  | G90: ='1ОиДинфоб'!#REF! ->  | H90: =E90+F90+G90 ->  | I90: ='2КомУслОц'!#REF! ->  | J90: ='2КомУслОц'!#REF! ->  | K90: =I90+J90 ->  | L90: ='3УслДостИнвОц'!#REF! ->  | M90: ='3УслДостИнвОц'!#REF! ->  | N90: ='3УслДостИнвОц'!#REF! ->  | O90: =L90+M90+N90 ->  | P90: ='4ДобрВежл'!#REF! ->  | Q90: ='4ДобрВежл'!#REF! ->  | R90: ='4ДобрВежл'!#REF! ->  | S90: =SUM(P90:R90) ->  | T90: ='5УдовлУсл'!#REF! ->  | U90: ='5УдовлУсл'!#REF! ->  | V90: ='5УдовлУсл'!#REF! ->  | W90: =SUM(T90:V90) -> 
B91: Солонешенский район | C91: МБУДО «Солонешенский центр детского творчества» | E91: ='1ОиДинфоб'!#REF! ->  | F91: ='1ОиДинфоб'!#REF! ->  | G91: ='1ОиДинфоб'!#REF! ->  | I91: ='2КомУслОц'!#REF! ->  | J91: ='2КомУслОц'!#REF! ->  | L91: ='3УслДостИнвОц'!#REF! ->  | M91: ='3УслДостИнвОц'!#REF! ->  | N91: ='3УслДостИнвОц'!#REF! ->  | P91: ='4ДобрВежл'!#REF! ->  | Q91: ='4ДобрВежл'!#REF! ->  | R91: ='4ДобрВежл'!#REF! ->  | T91: ='5УдовлУсл'!#REF! ->  | U91: ='5УдовлУсл'!#REF! ->  | V91: ='5УдовлУсл'!#REF! -> 
A92: 66 | B92: Первомайский район | C92: МБУДОД «Детско-юношеская спортивная школа» Первомайского района | D92: =AVERAGE(H92,K92,O92,S92,W92) ->  | E92: ='1ОиДинфоб'!#REF! ->  | F92: ='1ОиДинфоб'!#REF! ->  | G92: ='1ОиДинфоб'!#REF! ->  | H92: =E92+F92+G92 ->  | I92: ='2КомУслОц'!#REF! ->  | J92: ='2КомУслОц'!#REF! ->  | K92: =I92+J92 ->  | L92: ='3УслДостИнвОц'!#REF! ->  | M92: ='3УслДостИнвОц'!#REF! ->  | N92: ='3УслДостИнвОц'!#REF! ->  | O92: =L92+M92+N92 ->  | P92: ='4ДобрВежл'!#REF! ->  | Q92: ='4ДобрВежл'!#REF! ->  | R92: ='4ДобрВежл'!#REF! ->  | S92: =SUM(P92:R92) ->  | T92: ='5УдовлУсл'!#REF! ->  | U92: ='5УдовлУсл'!#REF! ->  | V92: ='5УдовлУсл'!#REF! ->  | W92: =SUM(T92:V92) -> 
A93: 67 | B93: Егорьевский район | C93: МБУДО «Егорьевская детско-юношеская спортивная школа» | D93: =AVERAGE(H93,K93,O93,S93,W93) ->  | E93: ='1ОиДинфоб'!#REF! ->  | F93: ='1ОиДинфоб'!#REF! ->  | G93: ='1ОиДинфоб'!#REF! ->  | H93: =E93+F93+G93 ->  | I93: ='2КомУслОц'!#REF! ->  | J93: ='2КомУслОц'!#REF! ->  | K93: =I93+J93 ->  | L93: ='3УслДостИнвОц'!#REF! ->  | M93: ='3УслДостИнвОц'!#REF! ->  | N93: ='3УслДостИнвОц'!#REF! ->  | O93: =L93+M93+N93 ->  | P93: ='4ДобрВежл'!#REF! ->  | Q93: ='4ДобрВежл'!#REF! ->  | R93: ='4ДобрВежл'!#REF! ->  | S93: =SUM(P93:R93) ->  | T93: ='5УдовлУсл'!#REF! ->  | U93: ='5УдовлУсл'!#REF! ->  | V93: ='5УдовлУсл'!#REF! ->  | W93: =SUM(T93:V93) -> 
B94: Красногорский район | C94: МКУДО «Дом детского творчества» Красногорского района | D94: =AVERAGE(H94,K94,O94,S94,W94) ->  | E94: ='1ОиДинфоб'!#REF! ->  | F94: ='1ОиДинфоб'!#REF! ->  | G94: ='1ОиДинфоб'!#REF! ->  | H94: =E94+F94+G94 ->  | I94: ='2КомУслОц'!#REF! ->  | J94: ='2КомУслОц'!#REF! ->  | K94: =I94+J94 ->  | L94: ='3УслДостИнвОц'!#REF! ->  | M94: ='3УслДостИнвОц'!#REF! ->  | N94: ='3УслДостИнвОц'!#REF! ->  | O94: =L94+M94+N94 ->  | P94: ='4ДобрВежл'!#REF! ->  | Q94: ='4ДобрВежл'!#REF! ->  | R94: ='4ДобрВежл'!#REF! ->  | S94: =SUM(P94:R94) ->  | T94: ='5УдовлУсл'!#REF! ->  | U94: ='5УдовлУсл'!#REF! ->  | V94: ='5УдовлУсл'!#REF! ->  | W94: =SUM(T94:V94) -> 
B95: Троицкий район | C95: МБУДО «Троицкий детско-юношеский центр» | E95: ='1ОиДинфоб'!#REF! ->  | F95: ='1ОиДинфоб'!#REF! ->  | G95: ='1ОиДинфоб'!#REF! ->  | I95: ='2КомУслОц'!#REF! ->  | J95: ='2КомУслОц'!#REF! ->  | L95: ='3УслДостИнвОц'!#REF! ->  | M95: ='3УслДостИнвОц'!#REF! ->  | N95: ='3УслДостИнвОц'!#REF! ->  | P95: ='4ДобрВежл'!#REF! ->  | Q95: ='4ДобрВежл'!#REF! ->  | R95: ='4ДобрВежл'!#REF! ->  | T95: ='5УдовлУсл'!#REF! ->  | U95: ='5УдовлУсл'!#REF! ->  | V95: ='5УдовлУсл'!#REF! -> 
A96: 68 | B96: Рубцовский район | C96: МБУДО «Центр творческого развития «Ступени» Рубцовского района | D96: =AVERAGE(H96,K96,O96,S96,W96) ->  | E96: ='1ОиДинфоб'!#REF! ->  | F96: ='1ОиДинфоб'!#REF! ->  | G96: ='1ОиДинфоб'!#REF! ->  | H96: =E96+F96+G96 ->  | I96: ='2КомУслОц'!#REF! ->  | J96: ='2КомУслОц'!#REF! ->  | K96: =I96+J96 ->  | L96: ='3УслДостИнвОц'!#REF! ->  | M96: ='3УслДостИнвОц'!#REF! ->  | N96: ='3УслДостИнвОц'!#REF! ->  | O96: =L96+M96+N96 ->  | P96: ='4ДобрВежл'!#REF! ->  | Q96: ='4ДобрВежл'!#REF! ->  | R96: ='4ДобрВежл'!#REF! ->  | S96: =SUM(P96:R96) ->  | T96: ='5УдовлУсл'!#REF! ->  | U96: ='5УдовлУсл'!#REF! ->  | V96: ='5УдовлУсл'!#REF! ->  | W96: =SUM(T96:V96) -> 
A97: 69 | B97: Усть-Пристанский район | C97: МКУДО «Дом детского творчества» Усть-Пристанского района | E97: ='1ОиДинфоб'!#REF! ->  | F97: ='1ОиДинфоб'!#REF! ->  | G97: ='1ОиДинфоб'!#REF! ->  | I97: ='2КомУслОц'!#REF! ->  | J97: ='2КомУслОц'!#REF! ->  | L97: ='3УслДостИнвОц'!#REF! ->  | M97: ='3УслДостИнвОц'!#REF! ->  | N97: ='3УслДостИнвОц'!#REF! ->  | P97: ='4ДобрВежл'!#REF! ->  | Q97: ='4ДобрВежл'!#REF! ->  | R97: ='4ДобрВежл'!#REF! ->  | T97: ='5УдовлУсл'!#REF! ->  | U97: ='5УдовлУсл'!#REF! ->  | V97: ='5УдовлУсл'!#REF! -> 
A98: 70 | B98: Залесовский район | C98: МБУДО «Центр спорта и творчества» | E98: ='1ОиДинфоб'!#REF! ->  | F98: ='1ОиДинфоб'!#REF! ->  | G98: ='1ОиДинфоб'!#REF! ->  | I98: ='2КомУслОц'!#REF! ->  | J98: ='2КомУслОц'!#REF! ->  | L98: ='3УслДостИнвОц'!#REF! ->  | M98: ='3УслДостИнвОц'!#REF! ->  | N98: ='3УслДостИнвОц'!#REF! ->  | P98: ='4ДобрВежл'!#REF! ->  | Q98: ='4ДобрВежл'!#REF! ->  | R98: ='4ДобрВежл'!#REF! ->  | T98: ='5УдовлУсл'!#REF! ->  | U98: ='5УдовлУсл'!#REF! ->  | V98: ='5УдовлУсл'!#REF! -> 
A99: 71 | B99: Зональный район | C99: МКОУДО «Зональная районная детско-юношеская спортивная школа» | E99: ='1ОиДинфоб'!#REF! ->  | F99: ='1ОиДинфоб'!#REF! ->  | G99: ='1ОиДинфоб'!#REF! ->  | I99: ='2КомУслОц'!#REF! ->  | J99: ='2КомУслОц'!#REF! ->  | L99: ='3УслДостИнвОц'!#REF! ->  | M99: ='3УслДостИнвОц'!#REF! ->  | N99: ='3УслДостИнвОц'!#REF! ->  | P99: ='4ДобрВежл'!#REF! ->  | Q99: ='4ДобрВежл'!#REF! ->  | R99: ='4ДобрВежл'!#REF! ->  | T99: ='5УдовлУсл'!#REF! ->  | U99: ='5УдовлУсл'!#REF! ->  | V99: ='5УдовлУсл'!#REF! -> 
A103: Место в рейтинге | B103: Муниципальное образование | C103: Наименование образовательной организации | D103: Интегральное значение показателя | E103: К1 | F103: К2 | G103: К3 | H103: К4 | I103: К5
A104: 1 | B104: г. Барнаул | C104: КГБУДО «Детский технопарк Алтайского края «Кванториум.22» | D104: 98.79 | E104: 100 | F104: 99.95 | G104: 94 | H104: 100 | I104: 100
A105: 2 | B105: г. Барнаул | C105: МБУДО Детский оздоровительно-образовательный (профильный) центр «Валеологический центр» | D105: 98.612 | E105: 99.1 | F105: 100 | G105: 94 | H105: 99.96 | I105: 100
A106: 3 | B106: г. Барнаул | C106: КГБУДО «Алтайский краевой детский экологический центр» | D106: 98.51722609 | E106: 99.71836735 | F106: 99.85 | G106: 93.4 | H106: 99.64776312 | I106: 99.97
B107: Советский район | C107: МБУДО «Детско-юношеский центр» Советского района | D107: 98.466 | E107: 100 | F107: 99.5 | G107: 93.4 | H107: 100 | I107: 99.43
A108: 4 | B108: Баевский район | C108: МБУДО «Баевский Центр детского творчества и профессионального обучения Алтайского края» | D108: 98.33591837 | E108: 99.1 | F108: 98.97959184 | G108: 94 | H108: 99.78 | I108: 99.82
B109: Шелаболихинский район | C109: МКУДО «Шелаболихинская детско-юношеская спортивная школа» | D109: 98.33678788 | E109: 96.3 | F109: 99.5 | G109: 100 | H109: 99.39393939 | I109: 96.49
A110: 5 | B110: г. Барнаул | C110: КГБУДО «Алтайский краевой центр детского отдыха, туризма и краеведения «Алтай» | D110: 98.18316441 | E110: 98.3 | F110: 99.5 | G110: 94 | H110: 99.35322467 | I110: 99.7625974
B111: г. Рубцовск | C111: МБУДО «Станция туризма и экскурсий» г. Рубцовска | D111: 98.15237037 | E111: 99.65185185 | F111: 98 | G111: 94 | H111: 99.78 | I111: 99.33
A112: 6 | B112: Кулундинский район | C112: МБУДО «Центр детского творчества» Кулундинского района | D112: 98.14494384 | E112: 94.47077642 | F112: 99.03474903 | G112: 98.23529412 | H112: 99.61389961 | I112: 99.37
A113: 7 | B113: Алтайский район | C113: МАОУДО «Алтайский районный детско-юношеский центр» | D113: 97.60338365 | E113: 97.57768749 | F113: 99.51923077 | G113: 93.1 | H113: 98.8 | I113: 99.02
A114: 8 | B114: Завьяловский район | C114: МБОУДО «Завьяловский районный центр детского творчества» | D114: 96.90385245 | E114: 93.59926224 | F114: 98.5 | G114: 94 | H114: 98.8 | I114: 99.62
B115: Заринский район | C115: МБУДО «Центр детского творчества» Заринского района | D115: 96.912 | E115: 93.1 | F115: 99.5 | G115: 94 | H115: 99.18 | I115: 98.78
A116: 9 | B116: г. Заринск | C116: МБУДО «Центр детского творчества» г. Заринска | D116: 96.70957342 | E116: 94.47786708 | F116: 99 | G116: 92 | H116: 99.04 | I116: 99.03
A117: 10 | B117: Змеиногорский район | C117: МБУДО «Дворец творчества детей и молодежи» Змеиногорского района | D117: 95.57264968 | E117: 98.16615905 | F117: 99.95 | G117: 80 | H117: 99.88236311 | I117: 99.86472622
A118: 11 | B118: г. Белокуриха | C118: МБУДО «Центр эстетического воспитания» г. Белокурихи | D118: 94.91051612 | E118: 97.53387755 | F118: 100 | G118: 77.6 | H118: 99.65870307 | I118: 99.76
A119: 12 | B119: Кытмановский район | C119: МБУДО «Центр спорта и творчества Кытмановского района» | D119: 94.64716376 | E119: 90 | F119: 98.95470383 | G119: 86 | H119: 98.81533101 | I119: 99.46578397
A120: 13 | B120: Топчихинский район | C120: МКУДО «Топчихинский детско-юношеский центр» | D120: 94.52395745 | E120: 85.92978723 | F120: 100 | G120: 88 | H120: 99.04 | I120: 99.65
A121: 14 | B121: г. Барнаул | C121: МБУДО «Детская школа искусств «Традиция» с. Власиха г. Барнаула | D121: 94.35273905 | E121: 94.94783026 | F121: 99.5 | G121: 78 | H121: 99.78 | I121: 99.53586498
A122: 15 | B122: Чарышский район | C122: МБУДО «Центр детского творчества»Чарышского района | D122: 94.14082657 | E122: 93.62162162 | F122: 100 | G122: 78 | H122: 99.44125561 | I122: 99.64125561
A123: 16 | B123: Крутихинский район | C123: МБУДО «Крутихинский Детско-юношеский центр» | D123: 93.68 | E123: 96.4 | F123: 100 | G123: 72 | H123: 100 | I123: 100
A124: 17 | B124: г. Яровое | C124: МБУДО «Центр научно-технического творчества учащихся» г. Яровое | D124: 93.41537341 | E124: 97.19153953 | F124: 98.5 | G124: 72 | H124: 99.56 | I124: 99.82532751
A125: 18 | B125: Локтевский район | C125: МБУДО «Дом детского творчества» Локтевского района | D125: 93.02795699 | E125: 100 | F125: 100 | G125: 66 | H125: 99.56989247 | I125: 99.56989247
A126: 19 | B126: г. Барнаул | C126: МБУДО «Центр детского творчества №2» г. Барнаула | D126: 92.9308211 | E126: 98.90247253 | F126: 98.5 | G126: 69.6 | H126: 99.00466563 | I126: 98.64696734
A127: 20 | B127: Ельцовский район | C127: МБУДО «Ельцовский центр развития детей-детско-юношеская спортивная школа" | D127: 92.68990441 | E127: 94.85714286 | F127: 99.5 | G127: 72 | H127: 98.6 | I127: 98.49237918
B128: Тальменский район | C128: МКУДО «Тальменская детско-юношеская спортивная школа» | D128: 92.65266667 | E128: 91.58333333 | F128: 100 | G128: 72 | H128: 99.68 | I128: 100
A129: 21 | B129: Благовещенский район | C129: МБУДО «Благовещенский детско-юношеский центр» | D129: 92.57911009 | E129: 91.54290146 | F129: 99.95 | G129: 72 | H129: 99.60264901 | I129: 99.8
A130: 22 | B130: г. Барнаул | C130: МБУДО Городской психолого-педагогический центр «Потенциал» | D130: 92.53346729 | E130: 88 | F130: 99.50634697 | G130: 77.42307692 | H130: 98.99791255 | I130: 98.74
A131: 23 | B131: Новоалтайск район | C131: МБОУДО «Детско-юношеский центр города Новоалтайска» | D131: 91.99996159 | E131: 94.825 | F131: 99.95 | G131: 66 | H131: 99.42395448 | I131: 99.80085349
A132: 24 | B132: Табунский район | C132: МБУДО «Центр дополнительного образования детей» Табунского района | D132: 91.9102871 | E132: 83.93333333 | F132: 95 | G132: 85.93 | H132: 97.6480292 | I132: 97.04007299
A133: 25 | B133: г. Барнаул | C133: МБУДО «Центр развития творчества детей и юношества» Ленинского района г. Барнаула | D133: 91.73359933 | E133: 98.79799666 | F133: 99.95 | G133: 60 | H133: 99.96 | I133: 99.96
A134: 26 | B134: Чарышский район | C134: МБУДО «Детско-юношеская спортивная школа» Чарышского района | D134: 91.508 | E134: 87.7 | F134: 100 | G134: 70 | H134: 99.84 | I134: 100
A135: 27 | B135: Мамонтовский район | C135: МБУДО «Мамонтовский детско-юношеский центр» | D135: 91.318 | E135: 97.9 | F135: 99.5 | G135: 60 | H135: 100 | I135: 99.19
B136: Новичихинский район | C136: МКОУДО «Новичихинская детско-юношеская спортивная школа» | D136: 91.33390476 | E136: 92.70952381 | F136: 99 | G136: 66 | H136: 99.52 | I136: 99.44
B137: Ребрихинский район | C137: МКОУДО «Ребрихинский детско-юношеский центр» | D137: 91.25434678 | E137: 94.81943837 | F137: 99.47229551 | G137: 63.9 | H137: 98.96 | I137: 99.12
B138: г. Славгород | C138: МБУДО «Центр творчества детей и молодежи» г. Славгорода | D138: 91.29002484 | E138: 96.6 | F138: 98.52484472 | G138: 64.4 | H138: 98.35403727 | I138: 98.57124224
A139: 28 | B139: Романовский район | C139: МБУДО «Романовский детско-юношеский центр» | D139: 91.102 | E139: 97 | F139: 99 | G139: 60 | H139: 99.56 | I139: 99.95
A140: 29 | B140: Шелаболихинский район | C140: МБУДО «Шелаболихинский центр детского творчества» | D140: 90.85457783 | E140: 94.92792793 | F140: 99.5 | G140: 60 | H140: 99.84496124 | I140: 100
A141: 30 | B141: Поспелихинский район | C141: МКУДО «Поспелихинский районный центр детского творчества» | D141: 90.84727273 | E141: 95.13636364 | F141: 99.5 | G141: 60 | H141: 99.76 | I141: 99.84
A142: 31 | B142: Родинский район | C142: МБУДО «Детский оздоровительно-образовательный центр Родинского района | D142: 90.72 | E142: 96.1 | F142: 99.5 | G142: 58 | H142: 100 | I142: 100
A143: 32 | B143: г. Алейск | C143: МБУДО «Центр детского творчества» (г. Алейск) | D143: 90.39593016 | E143: 94.46952421 | F143: 99.5 | G143: 60 | H143: 99.03012658 | I143: 98.98
A144: 33 | B144: Тальменский район | C144: МКУДО «Тальменский центр внешкольной работы» | D144: 90.34745541 | E144: 96.31273161 | F144: 99.5 | G144: 57.27272727 | H144: 99.35181818 | I144: 99.3
A145: 34 | B145: г. Барнаул | C145: МБУДО «Центр детского творчества» Центрального района г. Барнаула | D145: 90.08393939 | E145: 93.56969697 | F145: 98.95 | G145: 60 | H145: 99.38 | I145: 98.52
A146: 35 | B146: г. Барнаул | C146: КГБУДО «Алтайский краевой дворец творчества детей и молодежи» | D146: 89.9529453 | E146: 92.8 | F146: 99 | G146: 60 | H146: 98.84 | I146: 99.12472648
B147: Смоленский район | C147: МБУДО «Смоленский дом детского творчества» | D147: 90.0482963 | E147: 96.48148148 | F147: 100 | G147: 54 | H147: 99.76 | I147: 100
A148: 36 | B148: г. Бийск | C148: МБУДО «Детский эколого-туристический центр» г. Бийска | D148: 89.94577622 | E148: 96.74279344 | F148: 99.5 | G148: 55.23 | H148: 99.00608768 | I148: 99.25
B149: Михайловский район | C149: МКОДО «Михайловский образовательно-оздоровительный центр Им. Ю.А. Гагарина» | D149: 89.89666667 | E149: 88.18333333 | F149: 97.5 | G149: 74 | H149: 95.8 | I149: 94
A150: 37 | B150: г. Барнаул | C150: МБУДО «Центр развития творчества детей и юношества» Индустриального района г. Барнаула | D150: 89.82751817 | E150: 96.35759083 | F150: 99.5 | G150: 54 | H150: 99.44 | I150: 99.84
B151: Бийский район | C151: МБУДО «Центр внешкольной работы» Бийского района | D151: 89.814 | E151: 95.2 | F151: 98.5 | G151: 58 | H151: 99.24 | I151: 98.13
A152: 38 | B152: г. Барнаул | C152: МБУДО «Центр эстетического воспитания «Песнохорки» | D152: 89.74872961 | E152: 92.37908497 | F152: 99.51456311 | G152: 60 | H152: 98.4 | I152: 98.45
B153: г. Бийск | C153: МБУДО «Дом детского творчества» г. Бийска | D153: 89.66769869 | E153: 99.25490764 | F153: 99.45 | G153: 51.63 | H153: 99.00179289 | I153: 99.00179289
A154: 39 | B154: г. Барнаул | C154: МБУДО «Дом художественного творчества детей» (г. Барнаул) | D154: 89.63679016 | E154: 98.73061748 | F154: 99.5 | G154: 50.8 | H154: 99.39333333 | I154: 99.76
B155: Михайловский район | C155: МКУДО «Михайловская детско-юношеская спортивная школа» | D155: 89.56523364 | E155: 91.82616822 | F155: 100 | G155: 56 | H155: 100 | I155: 100
A156: 40 | B156: Краснощековский район | C156: МБУДО «Краснощековский районный детско-юношеский центр» | D156: 89.52363636 | E156: 96.61818182 | F156: 99.5 | G156: 52 | H156: 100 | I156: 99.5
A157: 41 | B157: г. Рубцовск | C157: МБУДО «Детско-юношеский центр» г. Рубцовска | D157: 89.39452951 | E157: 86.16810207 | F157: 99.95 | G157: 61.45454545 | H157: 99.4 | I157: 100
B158: Третьяковский район | C158: МБОУДО «Центр развития творчества детей и юношества» Третьяковского района | D158: 89.44 | E158: 93.7 | F158: 99.5 | G158: 54 | H158: 100 | I158: 100
A159: 42 | B159: г. Барнаул | C159: МБУДО «Барнаульский городской детско-юношеский центр» | D159: 89.01181433 | E159: 97.81361708 | F159: 99.5 | G159: 50.2 | H159: 98.78787879 | I159: 98.75757576
A160: 43 | B160: Каменский район | C160: МБУДО «Каменский многопрофильный образовательный центр» | D160: 88.89140005 | E160: 93.13700025 | F160: 100 | G160: 51.93 | H160: 99.44 | I160: 99.95
B161: Павловский район | C161: МБУДО «Павловский детско-юношеский центр» | D161: 88.93769231 | E161: 96 | F161: 98 | G161: 54 | H161: 98.44 | I161: 98.24846154
A162: 44 | B162: Целинный район | C162: МБУДО «Центр творчества и отдыха» Целинного района | D162: 88.83349296 | E162: 84.87746479 | F162: 97 | G162: 66 | H162: 99.02 | I162: 97.27
A163: 45 | B163: г. Барнаул | C163: МБУДО «Детский оздоровительно-образовательный (профильный) центр Гармония» | D163: 88.74 | E163: 94.9 | F163: 100 | G163: 50 | H163: 98.8 | I163: 100
B164: Панкрушихинский район | C164: МБОУДО «Панкрушихинский районный Центр творчества» | D164: 88.65707637 | E164: 85.14259496 | F164: 99.01639344 | G164: 62.23 | H164: 98.52655738 | I164: 98.36983607
A165: 46 | B165: г. Барнаул | C165: МБУДО «Барнаульская городская станция юных техников» | D165: 88.52427412 | E165: 97.9 | F165: 99.95 | G165: 45.41176471 | H165: 99.408867 | I165: 99.95073892
A166: 47 | B166: Быстроистокский район | C166: МБУДО «Быстроистокская детско-юношеская спортивная школа» | D166: 88.3748714 | E166: 97.63193277 | F166: 99.5 | G166: 46 | H166: 99.24242424 | I166: 99.5
A167: 48 | B167: г. Барнаул | C167: МБУДО «Детско-юношеский центр» Индустриального района г. Барнаула | D167: 88.25190287 | E167: 97.46898435 | F167: 99.95 | G167: 44 | H167: 99.86052999 | I167: 99.98
B168: Курьинский район | C168: МБУДО «Дом детского творчества» Курьинского района | D168: 88.32116328 | E168: 93.58253968 | F168: 99.45054945 | G168: 49.27272727 | H168: 100 | I168: 99.3
B169: Солтонский район | C169: МКОУДО «Детско-юношеский центр» Солтонского района | D169: 88.25173031 | E169: 92.41612903 | F169: 97.52252252 | G169: 52 | H169: 99.44 | I169: 99.88
A170: 49 | B170: г. Барнаул | C170: МБУДО Центр внешкольной работы «Военно-спортивный клуб «Борец» | D170: 88.13554891 | E170: 95.83774453 | F170: 100 | G170: 46 | H170: 98.84 | I170: 100
B171: Усть-Калманский район | C171: МБУДО «Центр детского творчества» Усть-Калманского района | D171: 88.10044444 | E171: 94.52222222 | F171: 100 | G171: 46 | H171: 100 | I171: 99.98
A172: 50 | B172: г. Рубцовск | C172: МБУДО «Центр развития творчества» г. Рубцовска | D172: 88.036 | E172: 94.3 | F172: 99.95 | G172: 46 | H172: 99.98 | I172: 99.95
A173: 51 | B173: Первомайский район | C173: МБУДО «Центр творчества детей и молодежи «Созвездие» Первомайского района | D173: 87.85626519 | E173: 94 | F173: 99.51657459 | G173: 46 | H173: 99.88475138 | I173: 99.88
A174: 52 | B174: г. Рубцовск | C174: МБУДО «Центр внешкольной работы «Малая Академия» г. Рубцовска | D174: 87.60919654 | E174: 96.32222897 | F174: 99 | G174: 45.67 | H174: 98.40912913 | I174: 98.64462462
A175: 53 | B175: г. Барнаул | C175: МБУДО «Барнаульская городская станция юных натуралистов» | D175: 87.47200213 | E175: 97.05835777 | F175: 99.9 | G175: 42.63 | H175: 98.6214876 | I175: 99.15016529
B176: Бурлинский район | C176: МБУДО «Бурлинский Центр дополнительного образования» | D176: 87.53891228 | E176: 88.3245614 | F176: 100 | G176: 50.07 | H176: 100 | I176: 99.3
A177: 54 | B177: Хабарский район | C177: МБУДО «Центр детского творчества» Хабарского района | D177: 87.42 | E177: 94 | F177: 100 | G177: 45 | H177: 99.24 | I177: 98.86
A178: 55 | B178: г. Барнаул | C178: МБУДО «Центр детского творчества» Октябрьского района г. Барнаула | D178: 87.10189723 | E178: 96.2 | F178: 97 | G178: 46 | H178: 98.04948617 | I178: 98.26
A179: 56 | B179: Тогульский район | C179: МКУДО «Центр творчества, спорта и отдыха» Тогульского района | D179: 86.92872029 | E179: 93.62360146 | F179: 99.5 | G179: 44 | H179: 99.02 | I179: 98.5
A180: 57 | B180: г. Барнаул | C180: МБУДО «Центр детского (юношеского) технического творчества» Ленинского района | D180: 86.74296296 | E180: 83.95555556 | F180: 99 | G180: 52 | H180: 99.62962963 | I180: 99.12962963
A181: 58 | B181: ЗАТО Сибирский | C181: МБУДО «Детско-юношеский центр «Росток» ЗАТО Сибирский | D181: 86.49588517 | E181: 94.54545455 | F181: 99 | G181: 40.66666667 | H181: 98.44912281 | I181: 99.81818182
A182: 59 | B182: Рубцовский район | C182: МБУДО «Детско-юношеская спортивная школа» Рубцовского района | D182: 86.11958421 | E182: 89.7150639 | F182: 100 | G182: 42 | H182: 99.64285714 | I182: 99.24
A183: 60 | B183: г. Барнаул | C183: МБУДО «Центр развития творчества детей и молодежи» Железнодорожного района | D183: 85.93813537 | E183: 95.64469697 | F183: 98.5 | G183: 38.2 | H183: 98.7719933 | I183: 98.5739866
B184: Тюменцевский район | C184: МБУДО «Тюменцевский районный центр детского творчества» | D184: 85.8821855 | E184: 93.60980392 | F184: 99.5 | G184: 38 | H184: 99.5505618 | I184: 98.7505618
A185: 61 | B185: г. Барнаул | C185: МБУДО «Центр физкультурно-спортивной направленности «Акцент» | D185: 85.28858505 | E185: 92.71830986 | F185: 99.5 | G185: 36 | H185: 99.38461538 | I185: 98.84
A186: 62 | B186: г. Белокуриха | C186: МБУДО «Детско-юношеская спортивная школа» г. Белокурихи | D186: 85.24504505 | E186: 96.72522523 | F186: 99.5 | G186: 30 | H186: 100 | I186: 100
A187: 63 | B187: Калманский район | C187: МБУДО «Калманский районный детско-юношеский центр» | D187: 85.06047534 | E187: 96.55517241 | F187: 98.5 | G187: 32 | H187: 99.56989247 | I187: 98.67731183
A188: 64 | B188: Топчихинский район | C188: МКУДО «Топчихинская детско-юношеская спортивная школа» | D188: 85.12086022 | E188: 84.30430108 | F188: 98 | G188: 44.5 | H188: 99.6 | I188: 99.2
A189: 65 | B189: Мамонтовский район | C189: МКУДО «Мамонтовская детско-юношеская спортивная школа» | D189: 84.86762753 | E189: 91.97813765 | F189: 95.5 | G189: 46 | H189: 96.02 | I189: 94.84
B190: г. Барнаул | C190: МБУДО «Центр дополнительного образования детей «Память» Пост №1 г. Барнаула» | D190: 83.902 | E190: 83.3 | F190: 99.5 | G190: 38 | H190: 99.56 | I190: 99.15
B191: Солонешенский район | C191: МБУДО «Солонешенский центр детского творчества» | D191: 83.93259486 | E191: 95.16297428 | F191: 97.5 | G191: 30 | H191: 99 | I191: 98
A192: 66 | B192: Первомайский район | C192: МБУДОД «Детско-юношеская спортивная школа» Первомайского района | D192: 82.50072837 | E192: 78.36111111 | F192: 99.95 | G192: 36 | H192: 98.24253076 | I192: 99.95
A193: 67 | B193: Егорьевский район | C193: МБУДО «Егорьевская детско-юношеская спортивная школа» | D193: 82.4437594 | E193: 82.64736842 | F193: 97.5 | G193: 38 | H193: 99 | I193: 95.07142857
B194: Красногорский район | C194: МКУДО «Дом детского творчества» Красногорского района | D194: 82.39410054 | E194: 91.80460526 | F194: 99.5 | G194: 30 | H194: 95.42 | I194: 95.24589744
B195: Троицкий район | C195: МБУДО «Троицкий детско-юношеский центр» | D195: 82.39036735 | E195: 96.59183673 | F195: 100 | G195: 16 | H195: 99.36 | I195: 100
A196: 68 | B196: Рубцовский район | C196: МБУДО «Центр творческого развития «Ступени» Рубцовского района | D196: 81.83442857 | E196: 73.23214286 | F196: 99.5 | G196: 38 | H196: 99.64 | I196: 98.8
A197: 69 | B197: Усть-Пристанский район | C197: МКУДО «Дом детского творчества» Усть-Пристанского района | D197: 81.48261682 | E197: 92.41308411 | F197: 99 | G197: 16 | H197: 100 | I197: 100
A198: 70 | B198: Залесовский район | C198: МБУДО «Центр спорта и творчества» | D198: 80.30218579 | E198: 92.2942623 | F198: 98 | G198: 17.93 | H198: 98.23904762 | I198: 95.04761905
A199: 71 | B199: Зональный район | C199: МКОУДО «Зональная районная детско-юношеская спортивная школа» | D199: 78.01230769 | E199: 91.6 | F199: 98.46153846 | G199: 6 | H199: 97 | I199: 97
A200: Среднее по региону | D200: =AVERAGE(D104:D199) -> 90.05662848 | E200: =AVERAGE(E104:E199) -> 93.70348293 | F200: 99.209624 | G200: =AVERAGE(G104:G199) -> 59.11548753 | H200: 99.19778232 | I200: =AVERAGE(I104:I199) -> 99.05676564
